Cogmind - Beta 12 @@@ ROGUE MODE // 2023.03.26 @ 04:43:31 // Winter2019/RPGLIKE Player: ArabianSandBoa Result: Heading to fleet! Performance ------------- Evolutions (9) 4500 Regions Visited (51) 10200 Robots Destroyed (1870) 9350 Value Destroyed (107141) 107141 Prototype IDs (308) 6160 Alien Tech Used (11) 2200 Bonus (136304) 136304 TOTAL SCORE: 275855 Bonus ------- Triggered High Security 2000 Triggered Max Security 2000 High Alert Combat Kills 84400 Follower Combat Kills 7241 Entered Garrisons 1400 Network Hubs Disabled 600 Aligned with FarCom 300 Met Data Miner 300 Met Imprinter 300 Destroyed Z-Imprinter 1000 Triggered Deep Caves Wall 500 Exposed GOLEM Chamber 500 Met Warlord at Base 500 MAIN.C Attacked Warlord 500 Warlord Defense Kills 23502 Met R17 at Cetus 500 Used Core Reset Matrix 3000 Scanned by Researcher 500 Integrated Exoskeleton 5000 Destroyed MAIN.C Guards 500 Met MAIN.C 5000 Destroyed MAIN.C Shell 5000 Destroyed MAIN.C 10000 Met Architect 300 Win 3000 Friendly Fire -21539 Cogmind --------- Core Integrity 32/1350 Matter 20/300 Energy 2038/2040 System Corruption 0% Temperature Cool (0) Movement Walking (90) Ox1 Location To Fleet Rendezvous Parts ------- > --- POWER (1) -------- Light Quantum Reactor > --- PROPULSION (3) --- Sigix Exoskeleton > --- UTILITY (5) ------ Superbattery Quantum Capacitor Advanced Phase Shifter Advanced Force Field > --- WEAPON (3) ------- Sigix Sheargun (fused) Multirail Ragnarok Missile Launcher > --- INVENTORY (7) ---- Matter Compressor (250) Advanced Kinecellerator Experimental Weapon Cycler Linear Accelerator Compact Linear Accelerator Peak State ------------ > --- POWER ------------ Light Quantum Reactor > --- PROPULSION ------- Sigix Exoskeleton > --- UTILITY ---------- Experimental Target Analyzer Experimental Core Analyzer Improved Armor Integrity Analyzer Experimental Weapon Cycler Advanced Phase Shifter > --- WEAPON ----------- Sigix Sheargun Helical Railgun Multirail > --- INVENTORY -------- Superbattery Mobile Assembly Unit High-powered Transdimensional Reconstructor Ragnarok Missile Launcher [Rating: 245] Favorites ----------- Power Zionite Light DM Reactor Engine Light Angular Momentum Engine Power Core Light Neutrino Core Reactor Zionite Light DM Reactor Propulsion Zionite Glidesys I Treads Improved Treads Leg Sigix Exoskeleton Wheel Armored Huge Wheel Hover Unit Zionite Glidesys I Flight Unit Improved Diametric Drive Utility Experimental Core Analyzer Device Advanced Phase Shifter Storage Superbattery Processor Experimental Core Analyzer Hackware System Mapper Protection Powered Armor Weapon 8R-AWN's Boregun Energy Gun Sigix Sheargun Energy Cannon Enhanced Nova Cannon Ballistic Gun 8R-AWN's Boregun Ballistic Cannon Compact Linear Accelerator Launcher Rocket Array Special Weapon RU-N14's Throwing Claymores v3 Impact Weapon Powered Hammer Slashing Weapon Katana Piercing Weapon CR-A16's Pointy Stick Special Melee Weapon Improved Datajack Build | -11 -10 -10 -9 -9 -9 -8 -8 -8 -8 -8 -8 -8 -7 -7 -7 -7 -7 -6 -6 -6 -6 -6 -5 -5 -5 -5 -5 -5 -5 -5 -5 -4 -4 -4 -4 -4 -4 -4 -4 -4 -4 -3 -3 -3 -3 -3 -3 -2 -1 -1 -1 ------- Run | Jun Mat Min Mat Min Exi Min Mat Gar Mat Gar Mat Gar Fac Low Low Zio Dee Pro Fac Low Low Dat Pro Fac Was Fac Gar Fac Upp Upp War Pro Fac Was Fac Gar Fac Ext Cet Arc Hub Res Gar Res Qua Gar Sec Res Acc Com Ac0 Slots Evolved 24 | 4 2 1 3 . . . . 3 . . . . . . . 1 . . 3 . . . 1 1 . . . . . . 1 . . . . . . . . . 1 . . . . . 1 1 1 . . Power 2 | . . . 1 . . . . 1 . . . . . . . . . . . . . . . . . . . . . . . . . . . . . . . . . . . . . . . . . . . Propulsion 5 | . 1 . . . . . . . . . . . . . . . . . 3 . . . . . . . . . . . 1 . . . . . . . . . . . . . . . . . . . . Utility 11 | 3 1 1 1 . . . . 1 . . . . . . . 1 . . . . . . . . . . . . . . . . . . . . . . . . 1 . . . . . . 1 1 . . Weapon 6 | 1 . . 1 . . . . 1 . . . . . . . . . . . . . . 1 1 . . . . . . . . . . . . . . . . . . . . . . 1 . . . . Parts Attached 658 | 4 22 4 26 7 27 14 6 16 1 1 . 4 6 1 . 17 40 . 22 2 1 10 4 4 . 10 3 . . . 77 1 2 3 3 . 3 . 1 4 2 . 4 23 . 5 78 14 23 160 3 Power 39 | . . 1 4 . 3 1 . 1 . . . . 1 . . . 3 . . . . . . . . . 1 . . . 5 . . 1 2 . . . . . . . . 2 . 2 2 . 3 7 . Engine 5 | . . 1 4 . . . . . . . . . . . . . . . . . . . . . . . . . . . . . . . . . . . . . . . . . . . . . . . . Core 4 | . . . . . 2 . . 1 . . . . 1 . . . . . . . . . . . . . . . . . . . . . . . . . . . . . . . . . . . . . . Reactor 30 | . . . . . 1 1 . . . . . . . . . . 3 . . . . . . . . . 1 . . . 5 . . 1 2 . . . . . . . . 2 . 2 2 . 3 7 . Propulsion 32 | 1 3 . 3 2 . . . . . . . . . . . . 4 . 5 . . 2 . . . . . . . . 8 1 . . . . . . . 3 . . . . . . . . . . . Treads 7 | . 2 . 3 1 . . . . . . . . . . . . . . . . . . . . . . . . . . . . . . . . . . . 1 . . . . . . . . . . . Leg 2 | . . . . . . . . . . . . . . . . . 1 . . . . 1 . . . . . . . . . . . . . . . . . . . . . . . . . . . . . Wheel 3 | 1 1 . . 1 . . . . . . . . . . . . . . . . . . . . . . . . . . . . . . . . . . . . . . . . . . . . . . . Hover 19 | . . . . . . . . . . . . . . . . . 3 . 5 . . 1 . . . . . . . . 7 1 . . . . . . . 2 . . . . . . . . . . . Flight 1 | . . . . . . . . . . . . . . . . . . . . . . . . . . . . . . . 1 . . . . . . . . . . . . . . . . . . . . Utility 379 | 2 9 2 7 3 13 13 6 14 . 1 . 4 1 1 . 12 29 . 16 2 1 8 1 2 . 10 1 . . . 27 . . 2 . . 3 . 1 1 2 . 3 15 . 3 49 6 14 93 2 Device 258 | 2 5 . 5 1 7 8 3 11 . 1 . 3 . 1 . 4 18 . 15 2 1 3 1 2 . 10 1 . . . 19 . . 2 . . 3 . . 1 2 . 2 11 . 2 30 4 11 66 1 Storage 20 | . . . . . . 1 . . . . . . . . . . 3 . . . . 2 . . . . . . . . 4 . . . . . . . . . . . . . . . 3 . 1 5 1 Processor 51 | . 3 1 1 2 3 2 1 . . . . . . . . 5 . . 1 . . . . . . . . . . . 3 . . . . . . . . . . . 1 1 . 1 11 1 1 13 . Hackware 13 | . 1 . . . . 1 1 . . . . 1 . . . 1 . . . . . 3 . . . . . . . . . . . . . . . . . . . . . . . . 1 . . 4 . Protection 37 | . . 1 1 . 3 1 1 3 . . . . 1 . . 2 8 . . . . . . . . . . . . . 1 . . . . . . . 1 . . . . 3 . . 4 1 1 5 . Artifact . | . . . . . . . . . . . . . . . . . . . . . . . . . . . . . . . . . . . . . . . . . . . . . . . . . . . . Weapon 208 | 1 10 1 12 2 11 . . 1 1 . . . 4 . . 5 4 . 1 . . . 3 2 . . 1 . . . 37 . 2 . 1 . . . . . . . 1 6 . . 27 8 6 60 1 Energy Gun 36 | . 4 . . . . . . . . . . . 2 . . . 2 . . . . . . . . . . . . . 4 . . . . . . . . . . . . . . . 5 3 2 14 . Energy Cannon 30 | . . 1 2 . . . . . . . . . 1 . . . . . . . . . . . . . . . . . 11 . . . . . . . . . . . 1 1 . . 8 1 . 4 . Ballistic Gun 54 | 1 2 . 6 1 6 . . . 1 . . . . . . 2 . . . . . . 3 1 . . 1 . . . 6 . 1 . . . . . . . . . . . . . 8 . . 15 . Ballistic Cannon 15 | . 1 . . 1 . . . 1 . . . . . . . . . . . . . . . . . . . . . . 5 . . . . . . . . . . . . . . . . . 2 5 . Launcher 36 | . 3 . 1 . 1 . . . . . . . 1 . . 1 1 . 1 . . . . . . . . . . . 3 . 1 . 1 . . . . . . . . 2 . . 4 4 2 9 1 Special Weapon 9 | . . . . . . . . . . . . . . . . . . . . . . . . . . . . . . . 7 . . . . . . . . . . . . . . . . . . 2 . Impact Weapon 2 | . . . . . . . . . . . . . . . . . . . . . . . . . . . . . . . . . . . . . . . . . . . . . . . . . . 2 . Slashing Weapon 11 | . . . 3 . 4 . . . . . . . . . . . . . . . . . . . . . . . . . . . . . . . . . . . . . . 1 . . 1 . . 2 . Piercing Weapon 13 | . . . . . . . . . . . . . . . . 2 1 . . . . . . 1 . . . . . . 1 . . . . . . . . . . . . 2 . . 1 . . 5 . Special Melee Weapon 2 | . . . . . . . . . . . . . . . . . . . . . . . . . . . . . . . . . . . . . . . . . . . . . . . . . . 2 . Unidentified Prototypes 121 | . . . 1 . 11 5 . . . . . . 1 . . 3 13 . 1 . . 5 . . . . . . . . 15 . 1 2 2 . 1 . . . . . . 8 . 1 26 7 4 14 . Corrupted Parts 1 | . . . 1 . . . . . . . . . . . . . . . . . . . . . . . . . . . . . . . . . . . . . . . . . . . . . . . . System Corruption 3 | . . . 3 . . . . . . . . . . . . . . . . . . . . . . . . . . . . . . . . . . . . . . . . . . . . . . . . Parts Lost 5 | . . . 2 . . . 1 . . . . . . . . 1 . . . . . . . . . . . . . . . . . . . . . . . . . . . 1 . . . . . . . Power . | . . . . . . . . . . . . . . . . . . . . . . . . . . . . . . . . . . . . . . . . . . . . . . . . . . . . Propulsion 1 | . . . 1 . . . . . . . . . . . . . . . . . . . . . . . . . . . . . . . . . . . . . . . . . . . . . . . . Utility 3 | . . . 1 . . . 1 . . . . . . . . 1 . . . . . . . . . . . . . . . . . . . . . . . . . . . . . . . . . . . Weapon 1 | . . . . . . . . . . . . . . . . . . . . . . . . . . . . . . . . . . . . . . . . . . . . 1 . . . . . . . Highest Loss Streak 2 | . . . 2 . . . 1 . . . . . . . . 1 . . . . . . . . . . . . . . . . . . . . . . . . . . . 1 . . . . . . . To Critical Strikes 1 | . . . . . . . . . . . . . . . . . . . . . . . . . . . . . . . . . . . . . . . . . . . . 1 . . . . . . . Average Slot Usage (%) 85 | . 96 99 98 96 83 85 90 91 93 94 94 93 93 94 94 74 86 83 99 100 100 99 100 99 95 94 94 95 95 95 88 94 93 86 86 87 87 87 87 86 84 80 84 90 92 91 81 79 77 59 74 Engine 1 | . 11 9 9 14 10 . . . . . . . . . . . . . . . . . . . . . . . . . . . . . . . . . . . . . . . . . . . . . . Core 1 | . . . . . 2 7 7 8 11 11 11 11 10 11 11 11 . . . . . . . . . . . . . . . . . . . . . . . . . . . . . . . . . . . Reactor 6 | . . . . . 1 6 7 6 5 5 5 5 5 5 5 5 15 16 14 14 14 14 13 13 13 13 13 13 13 13 8 12 10 3 4 4 4 4 4 4 4 4 4 3 4 3 6 9 4 4 8 Treads 1 | . 6 19 15 8 . . . . . . . . . . . . . . . . . . . . . . . . . . . . . . . . . . . . . . . . . . . . . . . Leg 2 | . . . . . . . . . . . . . . . . . . . . . . . . . . . . . . . . . . . . . . . . . . . . . . . 4 9 8 8 8 Wheel 1 | . 6 . . 2 7 7 7 6 5 5 5 5 5 5 5 5 . . . . . . . . . . . . . . . . . . . . . . . . . . . . . . . . . . . Hover 7 | . . . . . . . . . . . . . . . . . 10 11 21 23 23 22 22 21 21 21 21 21 21 21 22 24 25 25 25 25 25 25 25 23 24 24 24 24 24 24 13 . . . . Device 19 | . 33 5 7 7 10 14 20 22 29 29 29 29 29 29 29 5 22 27 34 33 35 25 22 21 21 20 21 21 21 21 17 20 20 20 20 20 20 20 16 16 16 16 20 19 20 17 17 19 23 13 25 Storage 1 | . . . . . . . . . . . . . . . . . 3 5 4 4 4 4 4 4 4 4 4 4 4 4 3 4 4 4 4 4 4 4 4 4 4 4 2 . . . . . 3 . 1 Processor 10 | . 7 33 31 34 27 21 15 17 11 11 11 11 11 11 11 16 5 . 3 4 2 . . . . . . . . . 2 . . . . . . . . . . . 1 4 4 6 8 13 10 9 6 Hackware 5 | . 8 9 8 7 4 . 6 6 5 5 5 4 1 . . 3 . . . . . 11 13 13 13 13 13 13 13 13 12 12 12 12 12 12 12 12 12 12 12 12 12 12 12 12 6 . . . . Protection 1 | . . . 5 . 2 7 5 . . . . . 3 5 5 8 2 . . . . . . . . . . . . . . . . . . . . . 4 4 4 4 4 3 4 4 2 . 1 . . Energy Gun 3 | . 13 15 . . . . . . . . . . 5 . . . . . . . . . . . . . . . . . . . . . . . . . . . . . . . . . 9 19 16 9 8 Energy Cannon 1 | . . 4 3 . . . . . . . . . 1 5 5 . . . . . . . . . . . . . . . 5 . . . . . . . . . . . . 4 4 4 3 7 . . . Ballistic Gun 9 | . 7 . 12 20 8 21 21 19 22 23 23 23 12 11 11 7 11 11 9 9 9 9 10 19 17 17 16 17 17 17 6 8 8 8 8 8 8 8 8 8 8 8 8 8 8 8 4 . . 2 8 Launcher 3 | . 1 . . . . . . . . . . . 2 5 5 4 4 5 4 4 4 4 3 . . . . . . . 3 4 4 4 5 8 8 8 8 8 8 8 8 7 8 8 2 1 8 3 2 Piercing Weapon 1 | . . . . . . . . . . . . . . . . 3 4 5 4 4 4 4 3 3 4 4 4 4 4 4 . . . . . . . . . . . . . 3 4 4 1 . . 1 . Naked Turns . | . . . . . . . . . . . . . . . . . . . . . . . . . . . . . . . . . . . . . . . . . . . . . . . . . . . . Heaviest Build 147 | 9 14 26 38 33 77 65 61 74 74 68 67 73 101 101 96 116 115 101 101 69 70 70 74 76 70 70 75 75 75 75 135 101 101 116 116 115 115 115 122 124 124 114 137 137 136 136 147 60 73 82 69 Greatest Support 101 | 16 46 46 46 43 40 28 28 28 28 28 28 28 28 28 28 28 30 30 72 72 72 72 72 72 72 72 77 77 77 77 101 101 101 89 89 89 89 89 89 89 101 89 101 89 89 89 89 65 65 65 65 Greatest Overweight (x) 21 | . 4 . 5 9 2 2 2 2 2 2 2 2 3 3 3 4 7 3 3 . . 21 1 1 . 1 1 . . . 1 1 . 1 1 1 1 1 1 1 1 1 1 1 1 1 1 . 1 1 1 Average Overweight (x) . | . . . . . . 1 1 1 2 2 2 2 2 3 3 2 2 3 . . . . . . . . . . . . . . . . . 1 1 1 1 1 1 1 1 1 1 1 . . . . . Largest Inventory Capacity 7 | . 2 2 4 4 5 6 6 6 6 6 6 6 6 6 6 6 6 6 6 6 6 6 6 6 6 6 6 6 6 6 6 6 6 6 6 6 7 7 7 7 7 7 7 7 7 7 7 7 7 7 7 Average Capacity 5 | . . 2 3 4 4 5 6 6 6 6 6 6 6 6 6 6 6 6 6 6 6 6 6 6 6 6 6 6 6 6 6 6 6 6 6 6 6 7 7 7 7 7 7 7 7 7 7 7 7 7 7 Most Carried 7 | . 2 2 4 4 5 6 6 6 6 6 6 6 6 6 6 6 6 6 6 6 6 6 6 6 6 6 6 6 6 6 6 6 6 6 6 6 7 7 7 7 7 7 7 7 7 7 7 7 7 7 7 Average Carried 5 | . . 1 3 3 3 5 5 5 6 6 6 6 6 6 6 5 5 6 5 6 5 5 5 5 5 5 5 6 6 6 5 5 5 5 6 5 6 7 7 6 7 7 6 6 7 6 6 6 6 5 5 Final Capacity 7 | . 2 2 4 4 5 6 6 6 6 6 6 6 6 6 6 6 6 6 6 6 6 6 6 6 6 6 6 6 6 6 6 6 6 6 6 6 7 7 7 7 7 7 7 7 7 7 7 7 7 7 7 Final Carried 7 | . 2 2 4 4 5 6 6 6 6 6 6 6 6 6 6 5 6 6 6 6 6 6 6 6 5 6 6 6 6 6 6 6 6 6 6 6 7 7 7 7 7 7 7 7 7 7 7 7 7 7 5 Class Distribution -------------------- 24% | Alien-Sigix 24% | Scavenger-Mutant 15% | Wizard-Mutant 12% | Hacker-Mutant 6% | Wizard-Sprinter 3% | Hacker-Gunner Dominant Class ---------------- Hacker-Skirmisher | -10/Materials Hacker-Mutant | -10/Mines Hacker-Mutant | -9/Materials Hacker-Gunner | -9/Mines Hacker-Mutant | -9/Exiles Scavenger-Mutant | -8/Mines Scavenger-Mutant | -8/Materials Scavenger-Mutant | -8/Garrison Scavenger-Mutant | -8/Materials Scavenger-Mutant | -8/Garrison Scavenger-Mutant | -8/Materials Scavenger-Mutant | -8/Garrison Scavenger-Mutant | -7/Factory Scavenger-Mutant | -7/Lower Caves Scavenger-Mutant | -7/Lower Caves Hacker-Mutant | -7/Zion Scavenger-Mutant | -7/Deep Caves Scavenger-Mutant | -6/Proximity Caves Scavenger-Scout | -6/Factory Scavenger-Sprinter | -6/Lower Caves Scavenger-Sprinter | -6/Lower Caves Wizard-Sprinter | -6/Data Miner Wizard-Sprinter | -5/Proximity Caves Wizard-Sprinter | -5/Factory Wizard-Sprinter | -5/Waste Wizard-Sprinter | -5/Factory Wizard-Sprinter | -5/Garrison Wizard-Sprinter | -5/Factory Wizard-Sprinter | -5/Upper Caves Wizard-Sprinter | -5/Upper Caves Wizard-Mutant | -5/Warlord Wizard-Sprinter | -4/Proximity Caves Wizard-Sprinter | -4/Factory Wizard-Mutant | -4/Waste Wizard-Mutant | -4/Factory Wizard-Mutant | -4/Garrison Wizard-Mutant | -4/Factory Wizard-Mutant | -4/Extension Wizard-Mutant | -4/Cetus Wizard-Mutant | -4/Archives Wizard-Mutant | -4/Hub_04(d) Wizard-Gunner | -3/Research Wizard-Mutant | -3/Garrison Wizard-Mutant | -3/Research Wizard-Mutant | -3/Quarantine Wizard-Mutant | -3/Garrison Alien-Sigix | -3/Section 7 Alien-Sigix | -2/Research Alien-Sigix | -1/Access Alien-Sigix | -1/Command Alien-Sigix | -1/Access_0 Resources | -11 -10 -10 -9 -9 -9 -8 -8 -8 -8 -8 -8 -8 -7 -7 -7 -7 -7 -6 -6 -6 -6 -6 -5 -5 -5 -5 -5 -5 -5 -5 -5 -4 -4 -4 -4 -4 -4 -4 -4 -4 -4 -3 -3 -3 -3 -3 -3 -2 -1 -1 -1 ----------- Run | Jun Mat Min Mat Min Exi Min Mat Gar Mat Gar Mat Gar Fac Low Low Zio Dee Pro Fac Low Low Dat Pro Fac Was Fac Gar Fac Upp Upp War Pro Fac Was Fac Gar Fac Ext Cet Arc Hub Res Gar Res Qua Gar Sec Res Acc Com Ac0 Matter Collected 50286 | 254 722 53 1826 455 465 910 1143 1680 577 1067 . 1276 798 138 516 40 1660 264 3910 308 382 328 991 1043 187 900 1538 109 518 837 1435 346 . 726 76 246 194 644 111 290 544 . 1152 1861 . 2067 2583 70 1688 11358 . Remotely 3933 | . 88 . . . . . . . . . . . . . . . 40 264 3385 . 111 30 . . . . . . . . . . . . . . . . . . . . . . . . . . . 15 . Salvage Created 111660 | 217 1623 506 2940 1180 380 842 2760 1617 1038 1090 . 1716 1199 367 915 . 2645 389 7955 327 186 338 1432 1851 1767 945 2191 275 651 1015 5156 511 344 2669 353 154 323 2550 1097 334 1299 . 2278 4409 41 3705 8575 3895 9838 23772 . Parts 5388 | 15 79 33 217 55 71 73 166 129 71 84 . 88 91 13 42 . 105 35 314 24 29 32 75 119 38 58 136 20 35 55 218 33 19 41 27 5 16 99 19 21 47 . 98 222 4 192 454 191 482 898 . Haulers Intercepted 46 | . 2 . 6 . . . 4 . 4 . . . 3 . . . . . 2 . . . . . . 1 . . . . . . 1 . 1 . 1 . . . 4 . . 6 . . 2 4 5 . . Recyclers Shooed 15 | . 4 . 3 . . . 3 . . . . . . . . . . . . . . . . 3 . . . . . . . . 1 . . . . . . . . . . 1 . . . . . . . Parts Field Recycled . | . . . . . . . . . . . . . . . . . . . . . . . . . . . . . . . . . . . . . . . . . . . . . . . . . . . . Retrieved Matter . | . . . . . . . . . . . . . . . . . . . . . . . . . . . . . . . . . . . . . . . . . . . . . . . . . . . . Parts Self-Destructed 348 | . . . . . . . . . . . . . . 13 42 3 . 35 . 23 29 . 75 . . . . . 37 58 . 33 . . . . . . . . . . . . . . . . . . . Prevented 3 | . . . . . . . . . . . . . . . . . . . . . . . . . . . . . 3 . . . . . . . . . . . . . . . . . . . . . . Kills | -11 -10 -10 -9 -9 -9 -8 -8 -8 -8 -8 -8 -8 -7 -7 -7 -7 -7 -6 -6 -6 -6 -6 -5 -5 -5 -5 -5 -5 -5 -5 -5 -4 -4 -4 -4 -4 -4 -4 -4 -4 -4 -3 -3 -3 -3 -3 -3 -2 -1 -1 -1 ------- Run | Jun Mat Min Mat Min Exi Min Mat Gar Mat Gar Mat Gar Fac Low Low Zio Dee Pro Fac Low Low Dat Pro Fac Was Fac Gar Fac Upp Upp War Pro Fac Was Fac Gar Fac Ext Cet Arc Hub Res Gar Res Qua Gar Sec Res Acc Com Ac0 Combat Hostiles Destroyed 1931 | . 19 4 57 17 3 14 41 39 14 26 . 30 18 8 14 . 64 12 131 11 8 4 29 18 4 14 41 2 10 21 209 13 3 6 7 . 1 38 26 4 22 . 24 37 . 44 134 39 176 475 . Melee 5 | . . . . . . . . . . . . . . . . . 3 . 1 . 1 . . . . . . . . . . . . . . . . . . . . . . . . . . . . . . Guns 1153 | . 18 4 45 17 2 14 41 39 14 26 . 30 13 5 14 . 24 12 87 11 7 4 29 17 4 14 41 2 9 21 24 13 3 6 4 . . 29 3 4 10 . 21 34 . 37 116 39 98 148 . Cannons 41 | . . . 8 . . . . . . . . . . . . . . . . . . . . . . . . . . . 27 . . . 1 . . . 1 . . . . 1 . 1 1 . . 1 . AOE 730 | . 1 . 4 . 1 . . . . . . . 5 3 . . 37 . 42 . . . . 1 . . . . . . 158 . . . 2 . 1 9 22 . 12 . 3 2 . 6 17 . 78 326 . Classes Destroyed 36 | 3 5 . 5 2 1 1 3 2 . 1 . . . . . . 4 . 1 . . . . . 1 . 1 . . . 3 . . . . . . . . . . . . . . . 2 . 1 . . Worker 48 | 2 3 1 1 1 . 2 3 . 2 . . . 3 . . . . . 9 . . . . 2 . . . 1 . . . . . . 3 . 1 . . . 5 . . . . . . 1 6 2 . Builder 39 | . 3 . 5 . . 4 3 . 1 . . . 4 . . . . . 1 . . . . 1 . . . 3 . . . . . . 2 . 3 . . . 3 . . 6 . . . . . . . Tunneler 13 | 5 1 1 . 2 . 2 . . 1 . . . . . . . . . . . . . . 1 . . . . . . . . . . . . . . . . . . . . . . . . . . . Hauler 46 | . 2 . 6 . . . 4 . 4 . . . 3 . . . . . 2 . . . . . . 1 . . . . . . 1 . 1 . 1 . . . 4 . . 6 . . 2 4 5 . . Recycler 53 | 1 7 6 2 5 . 1 3 . 2 . . . 1 . . . . . 3 . . . . 2 . 1 . . . . . . 1 . . . . 1 . . 1 . . 6 . . . 1 1 8 . Carrier 17 | . . . . . . . 1 1 . . . . . . . . . . 5 . . . . . . . . . . . . . . . . . 1 . 1 . . . . . . . 1 . 3 4 . Mechanic 51 | . . . 2 . . . 1 . . . . . . . . . . . 10 . . . . 1 . . . . . . 4 . . . . . . 1 3 . . . . . . . 5 2 9 13 . Operator 27 | . 2 . 2 . . . 2 . . . . . 2 . . . . . 2 . . . . 2 . 1 . . . . . . . . 1 . 1 1 . 1 . . . 3 . . 1 2 2 2 . Drone 2 | . . . . . . . . . . . . . . . . . . . . . . . . . . . . . . . . . . . . . . . . . . . . . . . . . 1 1 . Turret 1 | . . . . . 1 . . . . . . . . . . . . . . . . . . . . . . . . . . . . . . . . . . . . . . . . . . . . . . Watcher 52 | . 3 . 4 . . . 4 1 3 . . . . . . . . . 2 . . . . 2 . 1 . 1 . . . . . . 1 . 2 1 2 . 1 . 2 6 1 . 2 1 4 8 . Swarmer 232 | . . . 13 4 . 4 12 6 4 5 . 4 3 3 . . . 5 3 3 3 . 17 . . 4 9 . 3 7 21 5 . . . . . 8 . . 3 . 2 8 . 11 9 2 15 36 . Cutter 16 | . . . . . . . . . . . . . . . . . . . . . . . . . . . 4 . . . . . . . . . . . . . . . . . . . 3 . 3 6 . Saboteur 62 | . . . . . . . . . . . . . . . . . . . 7 . . . . 1 . . . . . . 18 . . . . . . . . . 1 . . . . 3 4 . 7 21 . Grunt 701 | . 19 4 30 10 . 8 21 17 7 9 . 13 7 4 11 . . 4 56 7 2 . 8 6 . 6 10 . 4 8 95 6 1 . 4 . . 7 9 . 9 . 12 4 . 15 47 8 59 154 . Brawler 102 | . . . 4 1 . . 2 3 . . . 1 1 . 1 . . . 12 . . . 1 . . . . . . . 11 1 . . . . . 2 . . . . . . . 1 11 4 7 39 . Duelist 83 | . . . 3 1 . . 1 2 . 1 . 1 2 . . . . . 8 . 1 . . 1 . . 2 . . 1 6 1 . . . . . 3 3 . . . 1 . . 1 4 1 4 35 . Protector 51 | . . . . . . . 1 . . . . . 2 . . . . . 5 . . . . . . . . . . . 12 . . . . . . . 1 . 1 . . 1 . . 10 . 5 13 . Researcher 1 | . . . . . . . . . . . . . . . . . . . . . . . . . . . . . . . . . . . . . . . . . . . . . . . 1 . . . . Sentry 123 | . . . 7 . . . 2 4 2 3 . 5 1 . 1 . . 1 15 . . . 2 5 . . 8 2 1 3 . . 1 . 1 . . 5 4 4 1 . 4 5 . 4 6 8 16 2 . Demolisher 17 | . . . . . . . . . . . . . . . . . . . . . . . . . . . . . . . 4 . . . . . . 4 1 . . . . . . . . 1 . 7 . Specialist 28 | . . . . . . . . . . 4 . . . . . . . . . . . . . . . . 2 . . . 2 . . . . . . 1 . . 2 . . 3 . 2 . . . 12 . Hunter 140 | . . . . . . 1 1 . 1 1 . 1 . 1 . . . 1 16 . 1 . . 2 . 3 2 . . 2 9 . . . 2 . . 2 1 . . . 4 8 . 1 9 5 11 55 . Programmer 171 | . . . . . . . . 6 . 3 . 4 1 . . . . . 9 1 . . . 3 . 1 3 . 2 . 12 . 1 . . . 1 2 1 . 1 . 3 7 . 3 21 5 24 57 . Heavy 5 | . . . . . . . 1 . . . . . 1 . . . . . . . . . . . . . . . . . . . . . . . . . . . . . . . . . 2 . . 1 . Behemoth 24 | . . . . . . . . 1 . . . 1 . . 1 . . 1 1 . 1 . 1 . . . 1 . . . . . . . . . . 2 . . . . . . . 4 1 3 3 3 . Compactor 10 | . . . . . . . . . . . . . . . . . . . . . . . . . 4 . . . . . . . . 6 . . . . . . . . . . . . . . . . . Cetus Guard 7 | . . . . . . . . . . . . . . . . . . . . . . . . . . . . . . . . . . . . . . . 7 . . . . . . . . . . . . M Shell/Atk 1 | . . . . . . . . . . . . . . . . . . . . . . . . . . . . . . . . . . . . . . . . . . . . . . . . . . 1 . M Shell/Def 2 | . . . . . . . . . . . . . . . . . . . . . . . . . . . . . . . . . . . . . . . . . . . . . . . . . . 2 . Enhanced Grunt 4 | . . . . . . . . . . . . . . . . . . . . . . 4 . . . . . . . . . . . . . . . . . . . . . . . . . . . . . Lightning 5 | . . . . . . . . . . . . . . . . . . . . . . . . . . . . . . . . . . . . . . . . . 5 . . . . . . . . . . Combat Programmer 1 | . . . . . . . . . . . . . . . . . . . . . . . . . . . . . . . . . . . . . . . . . . . . . . . . . . 1 . Investigator 4 | . . . . . . . . . . . . . . . . . . . . . . . . . . . . . . . . . . . . . . . . . . . . . . . 1 . 1 2 . Striker 42 | . . . . . . . . . . . . . . . . . . . . . . . . . . . . . . . 10 . . . . . . . . . . . . . . . 3 1 14 14 . Executioner 37 | . . . . . . . . . . . . . . . . . . . . . . . . . . . . . . . 8 . . . . . . . . . . . . 1 . 1 5 2 7 13 . Alpha 7 4 | . . . . . . . . . . . . . . . . . . . . . . . . . . . . . . . . . . . . . . . . . . . . . . . 2 . . 2 . Zionite 9 | . . . . 1 8 . . . . . . . . . . . . . . . . . . . . . . . . . . . . . . . . . . . . . . . . . . . . . . Z-Technician 1 | . . . . . . . . . . . . . . . . . 1 . . . . . . . . . . . . . . . . . . . . . . . . . . . . . . . . . . Z-Light 8 | . . . . . . . . . . . . . . . . . 8 . . . . . . . . . . . . . . . . . . . . . . . . . . . . . . . . . . Decomposer 1 | . . . . . . . . . . . . . . . . . . . . . 1 . . . . . . . . . . . . . . . . . . . . . . . . . . . . . . Assembler 2 | . . . . . . . . . . . . . . . . . 2 . . . . . . . . . . . . . . . . . . . . . . . . . . . . . . . . . . Assembled 116 | . . . . 1 2 . . . . . . . . . . . 42 . . . . . . . . . . . . . 1 . . . . . . . . . . . . . . . . 3 8 59 . Golem 13 | . . . . . . . . . . . . . . . . . 13 . . . . . . . . . . . . . . . . . . . . . . . . . . . . . . . . . . Thug 11 | . . 3 1 1 . . . . . 1 . 1 . . . . . . . . . . . . . . . . . . . . . . . . . 3 1 . . . . . . . . . . . . Guerrilla 1 | . . . . . . . . . . . . . . . . . . . . . . . . . . . . . . . . . . . . . . . 1 . . . . . . . . . . . . Fireman 2 | . . . . . . . . . . . . . . . . . 2 . . . . . . . . . . . . . . . . . . . . . . . . . . . . . . . . . . Best Kill Streak 108 | 4 5 2 9 5 5 10 16 5 15 8 . 4 7 4 4 . 39 7 39 3 6 3 7 7 2 6 7 2 6 11 25 7 4 4 8 . 7 14 14 2 21 . 7 10 1 7 30 19 108 86 . Combat Bots Only 75 | . 3 2 9 4 2 10 9 5 12 8 . 4 5 4 4 . 38 7 33 3 6 2 7 6 2 6 7 1 5 11 24 7 2 4 3 . 1 13 12 2 12 . 7 7 . 7 30 8 56 75 . Max Kills in Single Turn 18 | 1 1 1 3 2 2 2 2 3 2 2 . 2 3 3 2 . 16 1 5 2 1 1 2 3 1 2 1 2 2 2 16 2 1 1 3 . 4 5 13 1 4 . 1 3 1 3 6 2 6 18 . Gunslinging 1 | . . . 1 1 . . 1 . . . . . . . 1 . 1 . 1 . . . 1 . . . . . . 1 1 . . . . . . 1 . . . . . . . 1 1 1 1 1 . Exploded 16 | . 1 . 3 . 1 . . . . . . . 3 3 . . 16 . 4 . . . . 1 . . . . . . 16 . . . 1 . 1 4 8 . 3 . 1 1 . 3 6 . 5 15 . Melee 1 | . . . . . . . . . . . . . . . . . 1 . 1 . 1 . . . . . . . . . . . . . . . . . . . . . . . . . . . . . . Uniques/NPCs Destroyed 9 | . . . . . 4 1 . . . . . . . . . . 1 . . . . 1 . . . . . . . . . . . . . . . . . . . . . . . . . . . 2 . 8R-AWN (-9/Exiles) EX-BIN (-9/Exiles) EX-DEC (-9/Exiles) EX-HEX (-9/Exiles) AD-0RF (-8/Mines) Z-Imprinter (-7/Deep Caves) Data Miner (-6/Data Miner) MAIN.C Shell (-1/Command) MAIN.C (-1/Command) Combat | -11 -10 -10 -9 -9 -9 -8 -8 -8 -8 -8 -8 -8 -7 -7 -7 -7 -7 -6 -6 -6 -6 -6 -5 -5 -5 -5 -5 -5 -5 -5 -5 -4 -4 -4 -4 -4 -4 -4 -4 -4 -4 -3 -3 -3 -3 -3 -3 -2 -1 -1 -1 -------- Run | Jun Mat Min Mat Min Exi Min Mat Gar Mat Gar Mat Gar Fac Low Low Zio Dee Pro Fac Low Low Dat Pro Fac Was Fac Gar Fac Upp Upp War Pro Fac Was Fac Gar Fac Ext Cet Arc Hub Res Gar Res Qua Gar Sec Res Acc Com Ac0 Damage Taken 33756 | . 550 408 2529 340 824 734 649 515 460 940 . 631 175 78 325 . 1454 467 1754 127 369 . 581 632 . 655 789 193 212 142 1039 114 192 . 163 . . 946 330 54 1011 . 496 987 15 765 1652 509 2237 6138 575 Core 26261 | . 444 333 1848 276 636 372 341 407 362 750 . 507 127 54 222 . 811 370 1388 100 296 . 459 518 . 515 645 175 170 117 805 92 150 . 131 . . 748 246 48 711 . 359 655 6 546 1256 459 2007 5287 512 Absorbed by Shields 9253 | . . . . . . . . 20 . . . 28 168 74 277 . 444 . . . . . . . . . 30 . . . 988 . . . . . . . . . . . . 1031 15 805 1027 565 2421 919 441 Redirected to Core 22593 | . 349 236 1489 208 554 349 314 372 316 638 . 421 113 44 204 . 712 352 1278 100 262 . 439 415 . 497 528 67 150 97 733 75 150 . 109 . . 727 221 21 711 . 267 598 6 486 1114 364 1592 4497 418 Redirected to Shielding 309 | . . . . . . 10 194 . . . . . . . . . 105 . . . . . . . . . . . . . . . . . . . . . . . . . . . . . . . . . . Core Remaining (%) 80 | 100 . 100 . . . 82 . . . . . 97 . . . . . 100 . . . . 90 . . . . . . . . 100 . . . . . . . . 17 . . . . . 98 98 . . 2 Volleys Fired 4332 | 14 170 37 271 44 48 45 94 128 47 86 . 101 60 10 43 . 90 35 275 24 34 16 78 56 28 40 117 16 18 38 121 28 19 39 23 15 14 51 25 12 47 . 82 134 3 162 332 115 319 689 39 Largest 5 | 2 2 2 3 3 3 2 2 4 3 2 . 2 4 2 2 . 2 2 3 2 2 2 5 5 2 4 4 4 4 4 3 2 2 2 2 2 2 3 2 2 3 . 2 2 2 4 3 3 3 3 1 Hottest 320 | 60 90 108 108 98 85 60 60 142 85 60 . 60 236 60 60 . 60 60 105 60 60 60 159 159 60 126 126 126 126 126 300 60 60 60 60 60 60 60 66 60 106 . 120 120 60 139 320 313 270 270 100 Shots Fired 8220 | 28 304 74 499 132 78 90 188 254 96 172 . 202 119 19 86 . 175 70 529 48 68 32 159 195 56 105 256 34 64 151 202 56 38 78 39 30 26 102 39 24 87 . 151 261 5 324 655 231 597 953 39 Gun 7725 | 28 298 69 427 131 76 90 188 246 96 172 . 202 115 18 86 . 170 70 507 48 68 32 159 195 56 105 256 34 64 151 111 56 38 78 32 30 24 94 22 24 72 . 138 252 4 320 629 230 555 827 32 Cannon 185 | . . 5 70 1 . . . 8 . . . . 1 . . . . . . . . . . . . . . . . . 70 . . . . . . . . . . . 3 3 . 1 16 1 . 6 . Launcher 293 | . 6 . 2 . 2 . . . . . . . 3 1 . . 5 . 22 . . . . . . . . . . . 21 . . . . . 2 4 12 . 14 . 10 6 1 3 10 . 42 120 7 Special 17 | . . . . . . . . . . . . . . . . . . . . . . . . . . . . . . . . . . . 7 . . 4 5 . 1 . . . . . . . . . . Kinetic 5579 | 14 164 . 424 132 76 90 188 254 96 172 . 202 113 18 86 . 170 70 507 48 68 32 159 195 56 105 256 34 64 151 108 56 38 78 32 30 24 94 22 24 72 . 138 252 4 320 272 . . 71 . Thermal 46 | 14 . . . . . . . . . . . . 3 . . . . . . . . . . . . . . . . . 3 . . . . . . . . . . . 3 3 . 1 16 1 . 2 . Explosive 266 | . 6 . 2 . 2 . . . . . . . 3 1 . . 5 . 22 . . . . . . . . . . . . . . . 7 . . 4 8 . 7 . 10 6 1 3 10 . 42 120 7 Electromagnetic 282 | . 134 74 73 . . . . . . . . . . . . . . . . . . . . . . . . . . . . . . . . . . . . . . . . . . . . . . 1 . Slashing 1933 | . . . . . . . . . . . . . . . . . . . . . . . . . . . . . . . . . . . . . . . . . . . . . . . 357 230 555 759 32 Entropic 114 | . . . . . . . . . . . . . . . . . . . . . . . . . . . . . . . 91 . . . . . 2 4 9 . 8 . . . . . . . . . . Robot Hit Streak 64 | 10 16 12 34 14 21 16 13 13 7 10 . 15 24 11 28 . 26 16 29 9 30 10 33 25 15 14 33 27 25 25 26 12 13 20 22 26 8 49 17 26 24 . 29 44 4 31 64 41 51 46 10 Robot Miss Streak 6 | 2 4 4 3 2 2 2 4 5 3 2 . 2 3 6 2 . 2 2 3 2 2 3 2 5 1 3 4 3 1 3 2 2 2 1 1 1 2 1 1 1 4 . 3 2 . 3 3 2 3 3 1 Penetration Max 2 | . . . . . 2 1 2 2 2 1 . 2 2 1 1 . 2 1 2 1 1 . 1 2 1 2 2 1 2 2 1 1 1 1 1 . 1 2 1 . 2 . 1 2 . 1 2 1 1 2 . Secondary Targets 166 | . 4 1 9 1 . 1 4 . 3 1 . 3 . . 2 . 6 1 9 1 2 . 5 1 1 1 5 . 1 5 4 . . 1 . . . 6 . 1 1 . . 7 . 4 21 12 16 26 . Max Gunslinging Chain 1 | . 1 1 1 1 . 1 1 . 1 1 . 1 . . 1 . 1 1 1 1 1 . 1 1 1 1 1 . 1 1 1 . . 1 . . . 1 . 1 1 . . 1 . 1 1 1 1 1 . Capacitor 338 | . . . . . . . . . . . . . . . . . . . . . . . . . . . . . . . . . . . . . . . . . . . . . . . . . . 306 32 Shots Hit Robots 5537 | 17 136 46 318 73 69 64 110 98 51 55 . 85 69 14 69 . 136 52 300 30 54 23 100 143 51 82 190 27 45 100 147 43 26 70 24 10 14 81 32 20 58 . 90 209 1 227 498 156 450 764 10 Core Hits 4416 | 9 55 20 109 31 33 34 79 72 37 37 . 49 59 14 32 . 168 23 423 17 17 7 49 68 10 36 77 11 23 48 282 20 8 10 21 4 14 85 56 9 56 . 59 112 1 116 331 91 350 1137 7 Critical Kills 677 | . 1 . . . 5 18 31 28 16 23 . 17 12 5 9 . 30 9 80 12 5 4 19 22 4 13 32 5 7 16 18 11 4 5 4 3 3 24 4 4 15 . 22 50 1 34 49 . . 3 . Critical Parts Destroyed 895 | . . . 2 . 8 22 34 26 20 21 . 36 16 2 19 . 25 18 117 11 13 5 22 40 1 24 48 8 16 24 21 14 2 1 6 5 4 37 7 4 17 . 23 68 . 50 57 . . 1 . Critical Strikes 1860 | . 1 1 2 . 16 42 66 55 37 44 . 54 28 7 28 . 61 30 207 23 29 11 51 67 32 37 92 15 23 42 76 25 7 35 14 9 7 70 13 9 38 . 50 126 1 103 123 5 9 39 . Destroy 1756 | . 1 . 2 . 14 42 66 55 37 44 . 54 28 7 28 . 60 30 207 23 29 11 51 65 32 37 92 15 23 42 39 25 7 35 12 9 7 70 12 9 37 . 50 125 1 103 116 . . 4 . Corrupt 1 | . . 1 . . . . . . . . . . . . . . . . . . . . . . . . . . . . . . . . . . . . . . . . . . . . . . . . . Sever 60 | . . . . . 2 . . . . . . . . . . . . . . . . . . . . . . . . . . . . . 2 . . . 1 . 1 . . . . . 7 5 9 33 . Impale 6 | . . . . . . . . . . . . . . . . . 1 . . . . . . 2 . . . . . . . . . . . . . . . . . . . 1 . . . . . 2 . Sunder 37 | . . . . . . . . . . . . . . . . . . . . . . . . . . . . . . . 37 . . . . . . . . . . . . . . . . . . . . Melee Attacks 176 | . . . 6 . 16 . . . . . . . . . . 2 21 . 29 . 3 . . 21 . 12 . . . . . . . . . . . . . . . . . 8 . 3 12 . . 43 . Impact . | . . . . . . . . . . . . . . . . . . . . . . . . . . . . . . . . . . . . . . . . . . . . . . . . . . . . Slashing 22 | . . . 6 . 16 . . . . . . . . . . . . . . . . . . . . . . . . . . . . . . . . . . . . . . . . . . . . . . Piercing 154 | . . . . . . . . . . . . . . . . 2 21 . 29 . 3 . . 21 . 12 . . . . . . . . . . . . . . . . . 8 . 3 12 . . 43 . Sneak Attacks 25 | . . . . . . . . . . . . . . . . . . . 3 . 1 . . 3 . 1 . . . . . . . . . . . . . . . . . . . . . . . 17 . Combat Hostiles 1 | . . . . . . . . . . . . . . . . . . . 1 . . . . . . . . . . . . . . . . . . . . . . . . . . . . . . . . Follow-up Attacks 1 | . . . . . 1 . . . . . . . . . . . . . . . . . . . . . . . . . . . . . . . . . . . . . . . . . . . . . . Damage Inflicted 380896 | 175 2039 949 6153 1365 1599 1354 3091 2668 1588 1618 . 2516 2399 386 1410 . 5164 1152 16187 591 1168 415 2117 2145 1462 1831 3749 587 737 1430 42894 873 721 1417 2142 234 1154 6528 9379 419 7920 . 3247 5768 26 5629 28161 10908 53629 130111 1691 Guns 187197 | 175 1884 682 4853 1365 1116 1354 2996 2668 1511 1611 . 2516 1545 238 1410 . 2094 1152 8182 591 1018 415 2117 1885 1462 1443 3749 587 737 1430 1640 873 480 1417 474 234 279 2748 369 419 1558 . 1740 4604 26 4880 23588 10801 29493 48419 369 Cannons 7053 | . . 78 802 . . . . . . . . . . . . . . . . . . . . . . . . . . . 5531 . . . . . . . . . . . . 150 . 49 228 47 . 168 . Explosions 181317 | . 155 189 496 . 91 . 95 . 77 . . . 854 148 . . 2376 . 7595 . . . . . . . . . . . 35723 . 241 . 1364 . 875 3517 8786 . 6316 . 1507 945 . 700 4345 60 24136 79404 1322 Melee 4270 | . . . . . 392 . . . . . . . . . . . 694 . 410 . 150 . . 260 . 388 . . . . . . . . . . . . . . . . . 69 . . . . . 1907 . Ramming 247 | . . . 2 . . . . . . 7 . . . . . . . . . . . . . . . . . . . . . . . . . . . 25 . . . . . . . . . . . 213 . Kinetic 80372 | 54 876 . 4805 1365 1116 1354 2996 2668 1511 1611 . 2516 1487 238 1410 . 2094 1152 8182 591 1018 415 2117 1885 1462 1443 3749 587 737 1430 1607 873 480 1417 474 234 279 2748 369 419 1558 . 1740 4604 26 4880 4615 . . 3180 . Thermal 5012 | 121 129 189 83 . . . 95 . . . . . 58 . . . . . 1281 . . . . . . . . . . . 1569 . . . 260 . 100 . . . . . . 150 . 49 228 47 653 . . Explosive 126777 | . . . 413 . 91 . . . . . . . 776 148 . . 2376 . 6123 . . . . . . . . . . . . . 241 . 1104 . . 519 1867 . 1400 . 1507 945 . 700 4345 60 23436 79404 1322 Electromagnetic 3111 | . 1034 760 850 . . . . . 77 . . . 78 . . . . . 191 . . . . . . . . . . . . . . . . . 74 . . . . . . . . . . . 47 . . Impact . | . . . . . . . . . . . . . . . . . . . . . . . . . . . . . . . . . . . . . . . . . . . . . . . . . . . . Slashing 106247 | . . . . . 392 . . . . . . . . . . . . . . . . . . . . . . . . . . . . . 304 . . 238 224 . 46 . . . . . 18973 10801 29493 45407 369 Piercing 3878 | . . . . . . . . . . . . . . . . . 694 . 410 . 150 . . 260 . 388 . . . . . . . . . . . . . . . . . 69 . . . . . 1907 . Entropic 55252 | . . . . . . . . . . . . . . . . . . . . . . . . . . . . . . . 39718 . . . . . 701 2998 6919 . 4916 . . . . . . . . . . Highest Corruption 18 | . . 1 4 4 4 . . 2 . . . 1 1 . . . . . 3 . . . . 1 18 18 1 1 2 2 2 . . . . . . 1 1 1 6 . . 5 . 1 5 . 3 4 . Average Corruption 2 | . . 1 3 4 3 . . 1 . . . 1 1 . . . . . 2 . . . . 1 9 12 1 1 1 2 1 . . . . . . 1 1 1 3 . . 2 . 1 5 . 2 3 . Corruption Purged 44 | . . . . . 4 . . 4 . . . 1 1 . . . . . 3 . . . . . . 18 . . . . 1 . . . . . . . . . . . . 7 . 1 . . . 4 . Corruption Blocked 57 | . . . . . . . . . . . . . . . . . . . . . . . . . . . . . . . 21 . . . . . . . . . . . . 15 . . . 21 . . . Effects 369 | . . 7 68 34 22 . . 1 . . . . 1 . . . . . 19 . . . . 2 4 6 3 . 2 6 7 . . . . . . . 1 2 7 . . 5 . 4 14 . 34 120 . Message Errors 89 | . . 2 10 10 5 . . . . . . . . . . . . . 4 . . . . 1 1 1 . . 1 1 3 . . . . . . . 1 1 1 . . 2 . 1 3 . 7 34 . Matter Fused 90 | . . 2 14 6 7 . . . . . . . . . . . . . 7 . . . . 1 2 1 3 . . 1 1 . . . . . . . . . . . . . . 1 4 . 11 29 . Heat Flow Errors 35 | . . 1 5 3 1 . . . . . . . 1 . . . . . . . . . . . . . . . . 1 3 . . . . . . . . . 1 . . 1 . . 3 . 5 10 . Energy Discharges 41 | . . 1 7 5 2 . . . . . . . . . . . . . 3 . . . . . . . . . 1 1 . . . . . . . . . . 1 . . . . 1 2 . 3 14 . Parts Rejected 8 | . . . 4 . 1 . . . . . . . . . . . . . 1 . . . . . . . . . . . . . . . . . . . . . . . . . . . . . 1 1 . Parts Fused 4 | . . . 2 . . . . . . . . . . . . . . . . . . . . . . . . . . . . . . . . . . . . . . . . . . . . . . 2 . Data Loss (minor) 46 | . . . 12 6 4 . . 1 . . . . . . . . . . 2 . . . . . . 2 . . . 1 . . . . . . . . . 1 2 . . 1 . . . . 1 13 . Data Loss (major) 15 | . . 1 3 . 2 . . . . . . . . . . . . . . . . . . . . 1 . . . . . . . . . . . . . . 2 . . . . 1 . . 1 4 . Misfires 19 | . . . 4 3 . . . . . . . . . . . . . . . . . . . . . 1 . . . . . . . . . . . . . . . . . . . . . . 1 10 . Alerts 6 | . . . 1 . . . . . . . . . . . . . . . 1 . . . . . 1 . . . . . . . . . . . . . . . . . . 1 . . . . 2 . . Weapon Failures 16 | . . . 6 1 . . . . . . . . . . . . . . 1 . . . . . . . . . . 1 . . . . . . . . . . . . . . . . 2 . 2 3 . Overload Shots . | . . . . . . . . . . . . . . . . . . . . . . . . . . . . . . . . . . . . . . . . . . . . . . . . . . . . Overflow Damage 10043 | . . 15 35 . . . 20 . . . . . . . . . 49 . 395 . 74 . . . . 28 . . . . 2403 . . . 17 . . 71 409 . 421 . . 147 . 75 17 . 2042 3760 65 Projectiles 519 | . . . 14 . . . . . . . . . . . . . . . . . . . . . . . . . . . 480 . . . . . . . . . . . . . . . . . . 25 . Explosions 8691 | . . 15 21 . . . 20 . . . . . . . . . 49 . 337 . . . . . . . . . . . 1923 . . . 17 . . 71 409 . 421 . . 24 . 75 17 . 2042 3185 65 Melee 833 | . . . . . . . . . . . . . . . . . . . 58 . 74 . . . . 28 . . . . . . . . . . . . . . . . . 123 . . . . . 550 . Knockbacks 2 | . . . . . . . . . . . . . . . . . . . . . . . . . . . . . . . . . . . . . . . . . . . . . . . . . . 2 . Impact . | . . . . . . . . . . . . . . . . . . . . . . . . . . . . . . . . . . . . . . . . . . . . . . . . . . . . Kinetic 2 | . . . . . . . . . . . . . . . . . . . . . . . . . . . . . . . . . . . . . . . . . . . . . . . . . . 2 . Secondary . | . . . . . . . . . . . . . . . . . . . . . . . . . . . . . . . . . . . . . . . . . . . . . . . . . . . . Self-Inflicted Damage 1618 | . 96 57 20 . . . . . . 3 . . 79 . . . 193 . 135 . . . . . . . . . . . 61 . . . . . . 12 . . 152 . . . . . . 50 312 392 56 Shots 43 | . 3 2 1 . . . . . . . . . 3 . . . 9 . 6 . . . . . . . . . . . 3 . . . . . . . . . 1 . . . . . . 2 8 4 1 Rammed 3 | . . . 1 . . . . . . 1 . . . . . . . . . . . . . . . . . . . . . . . . . . . 1 . . . . . . . . . . . . . Targets Rammed 4 | . . . 1 . . . . . . 1 . . . . . . . . . . . . . . . . . . . . . . . . . . . 1 . . . . . . . . . . . 1 . Kicked 1 | . . . . . . . . . . . . . . . . . . . . . . . . . . . . . . . . . . . . . . . . . . . . . . . . . . 1 . Crushed . | . . . . . . . . . . . . . . . . . . . . . . . . . . . . . . . . . . . . . . . . . . . . . . . . . . . . Highest Temperature 439 | 40 173 261 439 220 223 276 160 139 10 33 . 170 374 42 68 . 300 41 330 162 342 301 312 359 326 311 333 42 126 126 191 . . . . . . . . . 215 . 33 99 . 33 189 26 133 99 . Average Temperature 58 | 21 50 69 67 52 21 65 54 39 3 9 . 58 79 19 30 . 79 18 54 46 120 163 73 95 122 74 90 25 54 45 17 . . . . . . . . . 129 . 33 46 . 33 16 6 15 12 . Received Heat Transfer 6889 | . 255 183 873 84 . 678 279 126 198 432 . 192 33 28 128 . 283 123 324 48 9 . 204 132 . 69 149 9 45 54 109 . 21 . 33 . . 115 66 9 45 . 60 107 4 89 226 136 268 545 118 Effects 15 | . . . 3 . . . . . . . . . 3 . . . . . . . 2 . 3 3 . 1 . . . . . . . . . . . . . . . . . . . . . . . . . Shutdowns 2 | . . . 1 . . . . . . . . . 1 . . . . . . . . . . . . . . . . . . . . . . . . . . . . . . . . . . . . . . Energy Bleed 1 | . . . . . . . . . . . . . 1 . . . . . . . . . . . . . . . . . . . . . . . . . . . . . . . . . . . . . . Interference 10 | . . . . . . . . . . . . . 1 . . . . . . . 2 . 3 3 . 1 . . . . . . . . . . . . . . . . . . . . . . . . . Short Circuit 1 | . . . 1 . . . . . . . . . . . . . . . . . . . . . . . . . . . . . . . . . . . . . . . . . . . . . . . . Damage (minor) 1 | . . . 1 . . . . . . . . . . . . . . . . . . . . . . . . . . . . . . . . . . . . . . . . . . . . . . . . Siege Activations 1 | . . . . . . . . . . . . . . . . . . . . . . . . . . . . . . . . . . . . . . . . 1 . . . . . . . . . . . Total Turns 5 | . . . . . . . . . . . . . . . . . . . . . . . . . . . . . . . . . . . . . . . . 5 . . . . . . . . . . . Longest Duration 5 | . . . . . . . . . . . . . . . . . . . . . . . . . . . . . . . . . . . . . . . . 5 . . . . . . . . . . . Robots Corrupted 1 | . . 1 . . . . . . . . . . . . . . . . . . . . . . . . . . . . . . . . . . . . . . . . . . . . . . . . . Combat Hostiles . | . . . . . . . . . . . . . . . . . . . . . . . . . . . . . . . . . . . . . . . . . . . . . . . . . . . . Parts Fried 26 | . 8 4 6 . . . . . 1 . . . . . . . . . 2 . . . . . . . . . . . . . . . . . 1 2 . . . . . . . . 2 . . . . Impact Corruptions . | . . . . . . . . . . . . . . . . . . . . . . . . . . . . . . . . . . . . . . . . . . . . . . . . . . . . Robots Melted 3 | . . . . . . . . . . . . . . . . . . . . . . . . . . . . . . . . . . . . . . . . . . . . . . . . . 3 . . Combat Hostiles . | . . . . . . . . . . . . . . . . . . . . . . . . . . . . . . . . . . . . . . . . . . . . . . . . . . . . Parts Melted 24 | . . . . . . . . . . . . 1 . . . . 2 . . . . . . . . . 1 1 . . 4 . . . . . . . 1 . . . . 1 . 1 . 3 7 2 . Heat Transferred 4743 | 275 100 350 150 . . . 50 . . . . . 74 . . . . . 1050 . . . . . . . . . . . 1774 . . . 150 . 50 . . . . . . 111 . 37 185 37 350 . . Parts Sabotaged 2 | . . . . . . . . . . . . . . . . . . . . . . . . . . . . . . . 2 . . . . . . . . . . . . . . . . . . . . Parts Stolen . | . . . . . . . . . . . . . . . . . . . . . . . . . . . . . . . . . . . . . . . . . . . . . . . . . . . . Parts Stripped . | . . . . . . . . . . . . . . . . . . . . . . . . . . . . . . . . . . . . . . . . . . . . . . . . . . . . Power Chain Reactions 10 | . 3 4 1 . . . . . 1 . . . . . . . . . 1 . . . . . . . . . . . . . . . . . . . . . . . . . . . . . . . . Missiles Intercepted . | . . . . . . . . . . . . . . . . . . . . . . . . . . . . . . . . . . . . . . . . . . . . . . . . . . . . Alert | -11 -10 -10 -9 -9 -9 -8 -8 -8 -8 -8 -8 -8 -7 -7 -7 -7 -7 -6 -6 -6 -6 -6 -5 -5 -5 -5 -5 -5 -5 -5 -5 -4 -4 -4 -4 -4 -4 -4 -4 -4 -4 -3 -3 -3 -3 -3 -3 -2 -1 -1 -1 ------- Run | Jun Mat Min Mat Min Exi Min Mat Gar Mat Gar Mat Gar Fac Low Low Zio Dee Pro Fac Low Low Dat Pro Fac Was Fac Gar Fac Upp Upp War Pro Fac Was Fac Gar Fac Ext Cet Arc Hub Res Gar Res Qua Gar Sec Res Acc Com Ac0 Peak Influence 18951 | 40 555 382 1608 960 . 350 874 2335 1318 2019 984 1981 1500 . . . . . 5544 . . . . 693 287 605 1939 1200 . . . . 550 192 801 971 1450 3291 3688 1552 1637 858 1993 1793 1087 2687 5585 6981 10450 18951 . Initial 6646 | . 26 200 . 625 . . 81 566 1138 617 984 547 1039 . . . . . . . . . . 321 227 200 423 1017 . . . . 202 192 134 560 509 710 1842 1475 543 858 643 1120 996 815 1511 3141 3804 6646 . Average 5284 | 21 310 184 687 760 . 242 633 1525 913 1441 877 1338 1134 . . . . . 2393 . . . . 375 268 277 1235 1096 . . . . 430 192 510 778 1103 1812 2743 1504 1039 858 1476 1243 1025 1999 3145 5444 9095 16735 . Maximum Alert Level 5 | . 2 1 5 3 . 1 3 5 4 5 3 5 4 . . . . . 5 . . . . 2 1 2 5 4 . . . . 2 . 3 3 4 5 5 4 5 3 5 5 3 5 5 5 5 5 . Low Security (%) 7 | 100 33 59 15 . . 30 9 . . . . . . . . . . . 5 . . . . 22 . 10 . . . . . . . 100 24 . . . . . . . . . . . . . . . . Level 1 7 | . 31 40 18 . . 69 8 . 2 . . . . . . . . . . . . . . 29 100 72 . . . . . . 31 . 19 . . . . . . . . . . . . . . . . Level 2 9 | . 34 . 22 21 . . 33 8 25 3 . 6 . . . . . . 17 . . . . 48 . 17 12 . . . . . 68 . 31 18 5 . . . 39 . 4 . . . . . . . . Level 3 15 | . . . 20 78 . . 47 22 33 23 100 28 61 . . . . . 21 . . . . . . . 19 64 . . . . . . 24 81 40 26 . . 10 100 15 47 100 8 . . . . . Level 4 9 | . . . 15 . . . . 19 38 24 . 27 38 . . . . . 7 . . . . . . . 50 35 . . . . . . . . 54 25 . 100 46 . 32 29 . 12 5 . . . . Level 5 13 | . . . 7 . . . . 49 . 48 . 37 . . . . . . . . . . . . . . 17 . . . . . . . . . . 47 18 . 4 . 47 23 . 78 32 3 1 6 . High Security 28 | . . . . . . . . . . . . . . . . . . . 48 . . . . . . . . . . . . . . . . . . . 81 . . . . . . . 62 . . 93 . Max Security 7 | . . . . . . . . . . . . . . . . . . . . . . . . . . . . . . . . . . . . . . . . . . . . . . . . 96 98 . . Sterilizations 4 | . . . 1 . . . . . . . . . . . . . . . 1 . . . . . . . . . . . . . . . . . . . . . . . . . . . 1 . 1 . . Squads Dispatched 247 | . 5 1 17 1 . 1 8 . 4 . . . 7 . . . . . 39 . . . . 7 . 3 . . . . . . 2 . 1 . . 5 4 . 9 . . 9 . . 45 . 35 44 . Investigation 40 | . 4 1 8 1 . . 4 . 1 . . . 2 . . . . . 1 . . . . 5 . 1 . . . . . . 2 . . . . 1 . . 4 . . . . . . . 1 4 . Extermination 8 | . . . . . . . . . . . . . 1 . . . . . 2 . . . . 1 . . . . . . . . . . . . . . . . . . . 3 . . 1 . . . . Reinforcement 29 | . 1 . 4 . . 1 2 . 2 . . . 1 . . . . . 2 . . . . . . 1 . . . . . . . . . . . . . . 1 . . 4 . . 5 . 1 4 . Assault 153 | . . . 5 . . . 1 . . . . . 3 . . . . . 28 . . . . 1 . 1 . . . . . . . . 1 . . 4 4 . 1 . . 2 . . 36 . 30 36 . Garrison 17 | . . . . . . . 1 . 1 . . . . . . . . . 6 . . . . . . . . . . . . . . . . . . . . . 3 . . . . . 3 . 3 . . Intercept . | . . . . . . . . . . . . . . . . . . . . . . . . . . . . . . . . . . . . . . . . . . . . . . . . . . . . Searches Triggered . | . . . . . . . . . . . . . . . . . . . . . . . . . . . . . . . . . . . . . . . . . . . . . . . . . . . . Construction Impeded 6 | . . . 2 . . 1 . . 1 . . . . . . . . . 1 . . . . . . . . . . . . . . . . . . . . . . . . 1 . . . . . . . Haulers Reinforced 2 | . . . . . . . . . . . . . . . . . . . 1 . . . . . . . . . . . . . . . . . . . . . . . . 1 . . . . . . . Active Scanning Responses . | . . . . . . . . . . . . . . . . . . . . . . . . . . . . . . . . . . . . . . . . . . . . . . . . . . . . Cargo Convoy Interrupts 1 | . . . . . . . . . . . . . . . . . . . . . . . . . . . . . . . . . . . . . . . . . . . . 1 . . . . . . . Stealth | -11 -10 -10 -9 -9 -9 -8 -8 -8 -8 -8 -8 -8 -7 -7 -7 -7 -7 -6 -6 -6 -6 -6 -5 -5 -5 -5 -5 -5 -5 -5 -5 -4 -4 -4 -4 -4 -4 -4 -4 -4 -4 -3 -3 -3 -3 -3 -3 -2 -1 -1 -1 --------- Run | Jun Mat Min Mat Min Exi Min Mat Gar Mat Gar Mat Gar Fac Low Low Zio Dee Pro Fac Low Low Dat Pro Fac Was Fac Gar Fac Upp Upp War Pro Fac Was Fac Gar Fac Ext Cet Arc Hub Res Gar Res Qua Gar Sec Res Acc Com Ac0 Distress Signals 37 | . 1 . 1 . . . 1 1 4 . . . . . . . . . . . . . . 1 . . . 1 . . . . . . . . . 1 2 . . . . 3 1 . 3 8 4 5 . Communications Jammed 128 | . . . . . . . . . . . . . 5 . . . . . 6 . . . . 9 . 1 . . . . . . 2 . 1 . 11 6 1 . . . 3 58 . . 25 . . . . Distress Signals 123 | . . . . . . . . . . . . . 5 . . . . . 6 . . . . 9 . 1 . . . . . . 2 . 1 . 11 6 1 . . . 3 58 . . 20 . . . . Times Spotted 2422 | . 32 3 87 16 22 15 47 39 22 29 . 28 22 7 14 . 48 11 174 8 8 4 26 29 6 20 35 4 13 22 197 11 11 4 14 . 9 58 27 7 30 . 31 70 4 43 179 108 241 573 14 Peak Tracking Total 65 | . 3 2 9 4 10 7 6 5 5 4 . 4 6 4 4 . 30 3 18 3 2 3 6 12 3 5 6 2 4 8 19 4 5 2 6 . 2 14 13 1 9 . 4 9 4 5 22 32 28 65 15 Tactical Retreats 172 | . 2 . 4 . 4 1 2 7 1 10 . 3 3 . . . 4 . 6 3 . . 4 2 1 . 2 . 1 4 4 1 3 . . . . 2 1 . 2 . 2 4 . 4 18 18 15 34 . Traps | -11 -10 -10 -9 -9 -9 -8 -8 -8 -8 -8 -8 -8 -7 -7 -7 -7 -7 -6 -6 -6 -6 -6 -5 -5 -5 -5 -5 -5 -5 -5 -5 -4 -4 -4 -4 -4 -4 -4 -4 -4 -4 -3 -3 -3 -3 -3 -3 -2 -1 -1 -1 ------- Run | Jun Mat Min Mat Min Exi Min Mat Gar Mat Gar Mat Gar Fac Low Low Zio Dee Pro Fac Low Low Dat Pro Fac Was Fac Gar Fac Upp Upp War Pro Fac Was Fac Gar Fac Ext Cet Arc Hub Res Gar Res Qua Gar Sec Res Acc Com Ac0 Traps Triggered 60 | . . . 2 . . . . 3 . 7 . 3 1 . . . . . . . . . . 3 . . 4 . . . . . 1 . . 1 . 3 . . . . 7 1 . 8 3 . 7 6 . Indirectly 1 | . . . . . . . . . . . . . 1 . . . . . . . . . . . . . . . . . . . . . . . . . . . . . . . . . . . . . . Trap Hack Attempts . | . . . . . . . . . . . . . . . . . . . . . . . . . . . . . . . . . . . . . . . . . . . . . . . . . . . . Triggered . | . . . . . . . . . . . . . . . . . . . . . . . . . . . . . . . . . . . . . . . . . . . . . . . . . . . . Disarmed . | . . . . . . . . . . . . . . . . . . . . . . . . . . . . . . . . . . . . . . . . . . . . . . . . . . . . Reprogrammed 16 | . 8 . . . . . 8 . . . . . . . . . . . . . . . . . . . . . . . . . . . . . . . . . . . . . . . . . . . . Reused 1 | . . . . . . . 1 . . . . . . . . . . . . . . . . . . . . . . . . . . . . . . . . . . . . . . . . . . . . Traps Extracted . | . . . . . . . . . . . . . . . . . . . . . . . . . . . . . . . . . . . . . . . . . . . . . . . . . . . . Installed . | . . . . . . . . . . . . . . . . . . . . . . . . . . . . . . . . . . . . . . . . . . . . . . . . . . . . Triggered 46 | . . . 1 1 . . 1 . . . . . . . . . . . . 1 . . . . . . . . 2 . 38 . . . . . . . . . . . . 2 . . . . . . . Exploded 3 | . . . . . 3 . . . . . . . . . . . . . . . . . . . . . . . . . . . . . . . . . . . . . . . . . . . . . . Machines | -11 -10 -10 -9 -9 -9 -8 -8 -8 -8 -8 -8 -8 -7 -7 -7 -7 -7 -6 -6 -6 -6 -6 -5 -5 -5 -5 -5 -5 -5 -5 -5 -4 -4 -4 -4 -4 -4 -4 -4 -4 -4 -3 -3 -3 -3 -3 -3 -2 -1 -1 -1 ---------- Run | Jun Mat Min Mat Min Exi Min Mat Gar Mat Gar Mat Gar Fac Low Low Zio Dee Pro Fac Low Low Dat Pro Fac Was Fac Gar Fac Upp Upp War Pro Fac Was Fac Gar Fac Ext Cet Arc Hub Res Gar Res Qua Gar Sec Res Acc Com Ac0 Machines Disabled 511 | . 22 4 45 2 13 . 10 17 6 10 . 12 12 . . . 4 5 122 . . 1 5 9 . 7 10 . . 2 . . 6 . 9 6 8 13 5 1 8 . 11 2 2 16 45 10 28 18 5 Max in Single Turn 21 | . 3 1 4 1 2 . 2 2 2 1 . 2 2 . . . 1 2 21 . . 1 1 1 . 2 2 . . 1 . . 4 . 5 1 3 3 4 . 2 . 2 1 2 2 2 2 2 2 1 Garrison Access 7 | . . . . . . . . . . . . . . . . . . . 1 . . . . 1 . . . . . . . . . . . . . . . . . . . . . . 1 2 2 . . Garrison Relay 34 | . . . . . . . . 6 . 5 . 6 . . . . . . . . . . . . . . 4 . . . . . . . . 4 . . . . . . 4 . . 5 . . . . . Phase Generator 4 | . . . . . . . . . . . . . . . . . . . . . . . . . . . 1 . . . . . . . . 1 . . . . . . . . . 1 . . . 1 . Network Hub 3 | . . . . . . . . . . . . . . . . . . . . . . . . . . . . . . . . . . . . . . . . . 3 . . . . . . . . . . Energy Cycler 2 | . . . . . . . . . . . . . . . . . . . . . . . . . . . . . . . . . . . . . . . . . . . . . . . . . 2 . . Machines Repaired 5 | . 1 . 1 . . . . . . . . . . . . . . . . . . . . . . . . . . . . . . . . . . . . . 3 . . . . . . . . . . Machines Sabotaged . | . . . . . . . . . . . . . . . . . . . . . . . . . . . . . . . . . . . . . . . . . . . . . . . . . . . . Overloaded Fab Kills . | . . . . . . . . . . . . . . . . . . . . . . . . . . . . . . . . . . . . . . . . . . . . . . . . . . . . Hacking | -11 -10 -10 -9 -9 -9 -8 -8 -8 -8 -8 -8 -8 -7 -7 -7 -7 -7 -6 -6 -6 -6 -6 -5 -5 -5 -5 -5 -5 -5 -5 -5 -4 -4 -4 -4 -4 -4 -4 -4 -4 -4 -3 -3 -3 -3 -3 -3 -2 -1 -1 -1 --------- Run | Jun Mat Min Mat Min Exi Min Mat Gar Mat Gar Mat Gar Fac Low Low Zio Dee Pro Fac Low Low Dat Pro Fac Was Fac Gar Fac Upp Upp War Pro Fac Was Fac Gar Fac Ext Cet Arc Hub Res Gar Res Qua Gar Sec Res Acc Com Ac0 Machines Accessed 146 | . 8 3 13 1 . . 7 3 6 4 2 4 10 . 1 1 . . 5 . 1 4 1 9 . 5 2 3 1 1 4 . 6 . 4 3 3 9 . 1 5 1 . 4 1 2 1 . 1 6 . Terminals 98 | . 6 1 10 . . . 6 3 4 4 1 4 5 . . . . . 4 . . . 1 5 . 3 2 . . 1 . . 2 . 2 3 3 9 . . 5 . . 4 . 2 1 . 1 6 . Fabricators 11 | . . . . . . . . . . . . . 3 . . . . . . . . . . 1 . 1 . 1 . . . . 4 . 1 . . . . . . . . . . . . . . . . Repair Stations . | . . . . . . . . . . . . . . . . . . . . . . . . . . . . . . . . . . . . . . . . . . . . . . . . . . . . Recycling Units 10 | . 2 . 2 . . . . . 1 . . . 2 . . . . . . . . . . 2 . . . 1 . . . . . . . . . . . . . . . . . . . . . . . Scanalyzers 4 | . . . 1 . . . . . . . . . . . . . . . 1 . . . . 1 . . . 1 . . . . . . . . . . . . . . . . . . . . . . . Garrison Access 7 | . . . . . . . 1 . 1 . 1 . . . . . . . . . . . . . . 1 . . . . . . . . 1 . . . . . . 1 . . 1 . . . . . . Total Hacks 747 | . 40 6 79 1 . . 35 9 36 12 9 13 32 . 1 6 . . 24 . 1 31 7 84 . 20 19 9 1 7 8 . 25 . 11 12 54 37 . 3 28 1 . 29 1 3 14 . 7 32 . Successful 444 | . 25 3 61 1 . . 16 4 23 7 5 5 14 . 1 6 . . 13 . 1 31 7 50 . 11 9 9 1 7 8 . 13 . 6 5 29 19 . 3 23 1 . 15 1 3 4 . . 4 . Failed 301 | . 14 3 18 . . . 19 5 12 5 4 8 18 . . . . . 11 . . . . 34 . 9 10 . . . . . 12 . 5 7 25 18 . . 5 . . 14 . . 10 . 7 28 . Catastrophic 52 | . 1 1 1 . . . 3 1 . 1 . . 3 . . . . . . . . . . 6 . 2 1 . . . . . 1 . 1 2 5 6 . . . . . 4 . . 3 . 3 7 . Database Lockouts 2 | . 1 . . . . . . . 1 . . . . . . . . . . . . . . . . . . . . . . . . . . . . . . . . . . . . . . . . . . Manual 289 | . 20 2 40 . 1 . 20 4 12 7 7 1 16 . . 5 . . 5 . . . . 41 . 8 17 6 . . 1 . 12 . 5 6 20 14 . . 11 . . 2 . . 4 . . 2 . Terminals 582 | . 32 4 62 . . . 34 9 31 12 8 13 12 . . . . . 16 . . . 7 67 . 15 19 . . 7 . . 12 . 6 12 54 37 . . 28 . . 29 . 3 14 . 7 32 . Fabricators 38 | . . . . . . . . . . . . . 12 . . . . . . . . . . 3 . 4 . 3 . . . . 13 . 3 . . . . . . . . . . . . . . . . Repair Stations . | . . . . . . . . . . . . . . . . . . . . . . . . . . . . . . . . . . . . . . . . . . . . . . . . . . . . Recycling Units 46 | . 8 . 12 . . . . . 4 . . . 8 . . . . . . . . . . 10 . . . 4 . . . . . . . . . . . . . . . . . . . . . . . Scanalyzers 19 | . . . 5 . . . . . . . . . . . . . . . 8 . . . . 4 . . . 2 . . . . . . . . . . . . . . . . . . . . . . . Garrison Access 8 | . . . . . . . 1 . 1 . 1 . . . . . . . . . . . . . . 1 . . . . . . . . 2 . . . . . . 1 . . 1 . . . . . . Terminal Hacks 315 | . 16 3 34 1 . . 13 3 17 4 3 4 3 . 1 6 . . 6 . 1 31 7 32 . 7 7 . 1 7 8 . 3 . 2 4 28 18 . 3 17 . . 14 . 3 4 . . 4 . Record 66 | . . . 5 . . . . . 2 . . . . . . . . . 1 . . 11 7 3 . . . . . 7 6 . 1 . . . 11 . . 3 5 . . 1 . . 1 . . 2 . Part Schematic 32 | . . . . . . . . . . . . . . . . 6 . . . . . 11 . 1 . 2 . . . . . . 1 . . . 6 4 . . . . . 1 . . . . . . . Robot Schematic 9 | . . . . . . . . . . . . . . . . . . . . . . 6 . 1 . . . . . . . . . . . . 1 1 . . . . . . . . . . . . . Robot Analysis 30 | . 3 . 6 . . . 1 . . . . . . . . . . . 1 . . . . 10 . . . . . . . . . . . . 3 2 . . 2 . . . . . 1 . . 1 . Prototype ID Bank 27 | . 5 . 4 . . . 1 . 2 . . . 1 . . . . . 1 . . 3 . 3 . 1 . . . . . . . . . . 1 1 . . 2 . . 1 . . 1 . . . . Open Door 17 | . . 2 . 1 . . . 1 . 1 . 1 . . 1 . . . . . 1 . . . . . . . 1 . 2 . . . . 1 . 5 . . . . . . . . . . . . . Open DSF 2 | . . . . . . . . . . . . . . . . . . . . . . . . . . 1 . . . . . . . . . . . . . . . . . 1 . . . . . . . Level Access Points 4 | . 1 . . . . . . . . . . . . . . . . . . . . . . . . . . . . . . . 1 . 1 . 1 . . . . . . . . . . . . . . Branch Access Points 8 | . . . 2 . . . . . . . . . 1 . . . . . . . . . . 1 . 1 . . . . . . . . . . 1 1 . . 1 . . . . . . . . . . Emergency Access Points 15 | . . . 1 . . . 2 1 1 1 . 1 . . . . . . 1 . . . . 1 . . 1 . . . . . . . . 1 . . . . 1 . . 2 . 1 . . . . . Machine Index 7 | . . . . . . . 1 . . . . . . . . . . . . . . . . 1 . 1 . . . . . . . . . . . 1 . . 1 . . 1 . . . . . 1 . Terminal Index 1 | . . . 1 . . . . . . . . . . . . . . . . . . . . . . . . . . . . . . . . . . . . . . . . . . . . . . . . Repair Station Index 1 | . . . 1 . . . . . . . . . . . . . . . . . . . . . . . . . . . . . . . . . . . . . . . . . . . . . . . . Scanalyzer Index 2 | . . . . . . . . . . . . . . . . . . . . . . . . . . 1 . . . . . . . . . . 1 . . . . . . . . . . . . . . Garrison Index 4 | . . . . . . . . . 1 . 1 . . . . . . . . . . . . . . . . . . . . . . . 1 . . . . . . . . . . . 1 . . . . Alert Level 5 | . . . . . . . . . 1 . . . . . . . . . . . . . . 2 . . . . . . . . . . . . . . . . 1 . . 1 . . . . . . . Unreport Threat 24 | . 1 . 4 . . . 3 . 6 . 1 . . . . . . . . . . . . 4 . . . . . . . . . . . 1 . . . . 1 . . 3 . . . . . . . Locate Traps 4 | . . . . . . . . . . . . . . . . . . . . . . . . . . . 4 . . . . . . . . . . . . . . . . . . . . . . . . Reprogram Traps 7 | . 2 . 1 . . . 2 . 1 . . . . . . . . . . . . . . . . . 1 . . . . . . . . . . . . . . . . . . . . . . . . Dispatch Records 2 | . . 1 1 . . . . . . . . . . . . . . . . . . . . . . . . . . . . . . . . . . . . . . . . . . . . . . . . Maintenance Status 1 | . . . 1 . . . . . . . . . . . . . . . . . . . . . . . . . . . . . . . . . . . . . . . . . . . . . . . . Transport Status 1 | . . . . . . . . . . . . . . . . . . . . . . . . . . . . . . . . . . . . . . 1 . . . . . . . . . . . . . Investigation Status 1 | . . . 1 . . . . . . . . . . . . . . . . . . . . . . . . . . . . . . . . . . . . . . . . . . . . . . . . Recall Investigation 1 | . . . 1 . . . . . . . . . . . . . . . . . . . . . . . . . . . . . . . . . . . . . . . . . . . . . . . . Hauler Manifests 5 | . 1 . 1 . . . . . 1 . . . . . . . . . . . . . . 1 . . . . . . . . . . . . . 1 . . . . . . . . . . . . . Registered Components 8 | . 1 . 1 . . . 1 . . . . . . . . . . . . . . . . 1 . . . . . . . . . . . . 1 1 . . 1 . . 1 . . . . . . . Registered Prototypes 6 | . . . . . . . . . 1 . . . . . . . . . 1 . . . . 1 . . . . . . . . . . . . 1 . . . 1 . . 1 . . . . . . . Zone Layout 16 | . 2 . 3 . . . 2 . 1 . 1 . 1 . . . . . 1 . . . . 2 . . . . . . . . . . . . 1 . . . 1 . . 1 . . . . . . . Garrison Registry 4 | . . . . . . . . 1 . 1 . 1 . . . . . . . . . . . . . . . . . . . . . . . 1 . . . . . . . . . . . . . . . Patrol Navigation 3 | . . . . . . . . . . 1 . 1 . . . . . . . . . . . . . . 1 . . . . . . . . . . . . . . . . . . . . . . . . Security Stations 2 | . . . . . . . . . . . . . . . . . . . . . . . . . . . . . . . . . . . . . . . . . . . . . . 2 . . . . . Fabricator Hacks 10 | . . . . . . . . . . . . . 4 . . . . . . . . . . . . 1 . 1 . . . . 3 . 1 . . . . . . . . . . . . . . . . Network Status 9 | . . . . . . . . . . . . . 3 . . . . . . . . . . . . 1 . 1 . . . . 3 . 1 . . . . . . . . . . . . . . . . Build 1 | . . . . . . . . . . . . . 1 . . . . . . . . . . . . . . . . . . . . . . . . . . . . . . . . . . . . . . Repair Station Hacks . | . . . . . . . . . . . . . . . . . . . . . . . . . . . . . . . . . . . . . . . . . . . . . . . . . . . . Recycling Unit Hacks 9 | . 1 . 3 . . . . . . . . . 2 . . . . . . . . . . 2 . . . 1 . . . . . . . . . . . . . . . . . . . . . . . Report Inventory 8 | . 1 . 2 . . . . . . . . . 2 . . . . . . . . . . 2 . . . 1 . . . . . . . . . . . . . . . . . . . . . . . Retrieve Matter 1 | . . . 1 . . . . . . . . . . . . . . . . . . . . . . . . . . . . . . . . . . . . . . . . . . . . . . . . Scanalyzer 15 | . . . 5 . . . . . . . . . . . . . . . 6 . . . . 2 . . . 2 . . . . . . . . . . . . . . . . . . . . . . . Insert Component 8 | . . . 3 . . . . . . . . . . . . . . . 3 . . . . 1 . . . 1 . . . . . . . . . . . . . . . . . . . . . . . Analyze 7 | . . . 2 . . . . . . . . . . . . . . . 3 . . . . 1 . . . 1 . . . . . . . . . . . . . . . . . . . . . . . Garrison Access Hacks 7 | . . . . . . . 1 . 1 . 1 . . . . . . . . . . . . . . 1 . . . . . . . . 1 . . . . . . 1 . . 1 . . . . . . Unlock Access 7 | . . . . . . . 1 . 1 . 1 . . . . . . . . . . . . . . 1 . . . . . . . . 1 . . . . . . 1 . . 1 . . . . . . Unauthorized Hacks 88 | . 8 . 19 . . . 2 1 5 3 1 1 5 . . . . . 1 . . . . 14 . 2 2 5 . . . . 7 . 2 1 1 1 . . 6 . . 1 . . . . . . . Terminals 42 | . 3 . 12 . . . 2 1 2 3 1 1 . . . . . . 1 . . . . 3 . . 2 . . . . . . . 1 1 1 1 . . 6 . . 1 . . . . . . . Botnet 25 | . 2 . 5 . . . 2 . 2 1 1 . . . . . . . 1 . . . . 3 . . 1 . . . . . . . 1 1 1 1 . . 2 . . 1 . . . . . . . Detonate 1 | . . . 1 . . . . . . . . . . . . . . . . . . . . . . . . . . . . . . . . . . . . . . . . . . . . . . . . Disrupt 1 | . . . 1 . . . . . . . . . . . . . . . . . . . . . . . . . . . . . . . . . . . . . . . . . . . . . . . . Sabotage 6 | . 1 . 1 . . . . . . . . . . . . . . . . . . . . . . . . . . . . . . . . . . . . . 4 . . . . . . . . . . Search 4 | . . . 4 . . . . . . . . . . . . . . . . . . . . . . . . . . . . . . . . . . . . . . . . . . . . . . . . Override 5 | . . . . . . . . 1 . 2 . 1 . . . . . . . . . . . . . . 1 . . . . . . . . . . . . . . . . . . . . . . . . Fabricators 17 | . . . . . . . . . . . . . 3 . . . . . . . . . . 2 . 2 . 2 . . . . 7 . 1 . . . . . . . . . . . . . . . . Report 6 | . . . . . . . . . . . . . 1 . . . . . . . . . . 1 . 1 . 1 . . . . 2 . . . . . . . . . . . . . . . . . . Fabnet 10 | . . . . . . . . . . . . . 2 . . . . . . . . . . 1 . 1 . 1 . . . . 4 . 1 . . . . . . . . . . . . . . . . Haulers 1 | . . . . . . . . . . . . . . . . . . . . . . . . . . . . . . . . . 1 . . . . . . . . . . . . . . . . . . Repair Stations . | . . . . . . . . . . . . . . . . . . . . . . . . . . . . . . . . . . . . . . . . . . . . . . . . . . . . Recycling Units 28 | . 5 . 7 . . . . . 3 . . . 2 . . . . . . . . . . 8 . . . 3 . . . . . . . . . . . . . . . . . . . . . . . Monitor 5 | . 1 . 1 . . . . . . . . . . . . . . . . . . . . 2 . . . 1 . . . . . . . . . . . . . . . . . . . . . . . Reject 8 | . 1 . 2 . . . . . 1 . . . 1 . . . . . . . . . . 2 . . . 1 . . . . . . . . . . . . . . . . . . . . . . . Mask 8 | . 1 . 2 . . . . . 1 . . . 1 . . . . . . . . . . 2 . . . 1 . . . . . . . . . . . . . . . . . . . . . . . Tunnel 7 | . 2 . 2 . . . . . 1 . . . . . . . . . . . . . . 2 . . . . . . . . . . . . . . . . . . . . . . . . . . . Scanalyzers 1 | . . . . . . . . . . . . . . . . . . . . . . . . 1 . . . . . . . . . . . . . . . . . . . . . . . . . . . Extract 1 | . . . . . . . . . . . . . . . . . . . . . . . . 1 . . . . . . . . . . . . . . . . . . . . . . . . . . . Garrison Access . | . . . . . . . . . . . . . . . . . . . . . . . . . . . . . . . . . . . . . . . . . . . . . . . . . . . . Data Cores Recovered 8 | . . . . . . . 1 . . . . . 1 . . . . . 1 . . . . 2 . . . . . . . . . . . . 2 . . . . . . 1 . . . . . . . Used 1 | . . . . . . . . . . . . . . . . . . . . . . . . 1 . . . . . . . . . . . . . . . . . . . . . . . . . . . Hacking Detections 88 | . 7 1 11 . . . 7 2 4 3 1 2 7 . . . . . 4 . . . 1 7 . 2 . . . 1 . . 3 . 2 2 3 5 . . 2 . . 3 . . 1 . 1 6 . Full Trace Events 27 | . 3 1 3 . . . 5 1 . . . 1 2 . . . . . 1 . . . . 2 . 1 . . . . . . 2 . . . . . . . . . . . . . . . 1 4 . Feedback Events 3 | . . 1 . . . . . . . . . . 1 . . . . . 1 . . . . . . . . . . . . . . . . . . . . . . . . . . . . . . . . Corruption 3 | . . 1 . . . . . . . . . . 1 . . . . . 1 . . . . . . . . . . . . . . . . . . . . . . . . . . . . . . . . Feedback Blocked . | . . . . . . . . . . . . . . . . . . . . . . . . . . . . . . . . . . . . . . . . . . . . . . . . . . . . Robot Schematics Acquired 14 | . . . . . . . . . . . . . . . . 4 . . . . . 6 . 1 . . . . . . . . . . . . 1 1 . . . . . . . . 1 . . . . Robots Built . | . . . . . . . . . . . . . . . . . . . . . . . . . . . . . . . . . . . . . . . . . . . . . . . . . . . . Authchips . | . . . . . . . . . . . . . . . . . . . . . . . . . . . . . . . . . . . . . . . . . . . . . . . . . . . . Time . | . . . . . . . . . . . . . . . . . . . . . . . . . . . . . . . . . . . . . . . . . . . . . . . . . . . . Total Robot Build Rating . | . . . . . . . . . . . . . . . . . . . . . . . . . . . . . . . . . . . . . . . . . . . . . . . . . . . . Part Schematics Acquired 62 | . . . 2 . . . . . . . . . . . . 21 . . 3 . . 11 . 5 . 2 . 1 . . . . 1 . . . 6 4 . . . . . 1 . . 5 . . . . Parts Built 2 | . . . . . . . . . . . . . 2 . . . . . . . . . . . . . . . . . . . . . . . . . . . . . . . . . . . . . . Authchips . | . . . . . . . . . . . . . . . . . . . . . . . . . . . . . . . . . . . . . . . . . . . . . . . . . . . . Time 39 | . . . . . . . . . . . . . 39 . . . . . . . . . . . . . . . . . . . . . . . . . . . . . . . . . . . . . . Total Part Build Rating 14 | . . . . . . . . . . . . . 14 . . . . . . . . . . . . . . . . . . . . . . . . . . . . . . . . . . . . . . Parts Repaired . | . . . . . . . . . . . . . . . . . . . . . . . . . . . . . . . . . . . . . . . . . . . . . . . . . . . . Time . | . . . . . . . . . . . . . . . . . . . . . . . . . . . . . . . . . . . . . . . . . . . . . . . . . . . . Parts Recycled . | . . . . . . . . . . . . . . . . . . . . . . . . . . . . . . . . . . . . . . . . . . . . . . . . . . . . Recycled Matter . | . . . . . . . . . . . . . . . . . . . . . . . . . . . . . . . . . . . . . . . . . . . . . . . . . . . . Retrieved Matter 240 | . . . 240 . . . . . . . . . . . . . . . . . . . . . . . . . . . . . . . . . . . . . . . . . . . . . . . . Retrieved Components . | . . . . . . . . . . . . . . . . . . . . . . . . . . . . . . . . . . . . . . . . . . . . . . . . . . . . Parts Scanalyzed 7 | . . . 2 . . . . . . . . . . . . . . . 3 . . . . 1 . . . 1 . . . . . . . . . . . . . . . . . . . . . . . Part Schematics Acquired 7 | . . . 2 . . . . . . . . . . . . . . . 3 . . . . 1 . . . 1 . . . . . . . . . . . . . . . . . . . . . . . Parts Damaged . | . . . . . . . . . . . . . . . . . . . . . . . . . . . . . . . . . . . . . . . . . . . . . . . . . . . . Bothacking | -11 -10 -10 -9 -9 -9 -8 -8 -8 -8 -8 -8 -8 -7 -7 -7 -7 -7 -6 -6 -6 -6 -6 -5 -5 -5 -5 -5 -5 -5 -5 -5 -4 -4 -4 -4 -4 -4 -4 -4 -4 -4 -3 -3 -3 -3 -3 -3 -2 -1 -1 -1 ------------ Run | Jun Mat Min Mat Min Exi Min Mat Gar Mat Gar Mat Gar Fac Low Low Zio Dee Pro Fac Low Low Dat Pro Fac Was Fac Gar Fac Upp Upp War Pro Fac Was Fac Gar Fac Ext Cet Arc Hub Res Gar Res Qua Gar Sec Res Acc Com Ac0 Used RIF Installer . | . . . . . . . . . . . . . . . . . . . . . . . . . . . . . . . . . . . . . . . . . . . . . . . . . . . . Robots Hacked 113 | . . . . . . . . . . . . . . . . . . 1 7 . . . . 1 . . . . . 1 6 1 . . 1 . 1 4 1 . 1 . 15 11 . 8 37 17 . . . Non-combat . | . . . . . . . . . . . . . . . . . . . . . . . . . . . . . . . . . . . . . . . . . . . . . . . . . . . . Combat 113 | . . . . . . . . . . . . . . . . . . 1 7 . . . . 1 . . . . . 1 6 1 . . 1 . 1 4 1 . 1 . 15 11 . 8 37 17 . . . Robot Hacks Applied . | . . . . . . . . . . . . . . . . . . . . . . . . . . . . . . . . . . . . . . . . . . . . . . . . . . . . Relay Couplers Released 63 | . . . . . . . . 12 . 9 . 10 . . . . . . . . . . . 1 . . 7 . . . . . . . . 7 . . . . . . 4 . . 8 1 3 1 . . Machine Destruction 59 | . . . . . . . . 10 . 9 . 10 . . . . . . . . . . . 1 . . 7 . . . . . . . . 7 . . . . . . 4 . . 8 1 1 1 . . Programmers 4 | . . . . . . . . 2 . . . . . . . . . . . . . . . . . . . . . . . . . . . . . . . . . . . . . . . 2 . . . Fabnet Peak Effective % 15 | . . . . . . . . . . . . . . . . . . 6 6 6 6 6 2 2 2 2 2 2 2 2 2 9 9 9 9 9 9 9 9 9 9 15 15 15 15 15 15 4 . . . Autooverrided 113 | . . . . . . . . . . . . . . . . . . 1 7 . . . . 1 . . . . . 1 6 1 . . 1 . 1 4 1 . 1 . 15 11 . 8 37 17 . . . Robots Rewired 30 | . . . . . . . . 5 . . . 2 . . . . . . . . . . . . . . . . . . . . . . . 9 . 12 . . . . . . . 2 . . . . . Allies Hacked 4 | . . . . . . . . . . . . . . . . . . . . . . . . . . . . . . . . . . . . . . 1 1 . . . . 1 . . 1 . . . . Hacks Repelled 3 | . . . . . . . . . . . . . . . . . . . . . . . . . . . . . . . . . . . . . . . . . . . 1 . . . 2 . . . . Allies | -11 -10 -10 -9 -9 -9 -8 -8 -8 -8 -8 -8 -8 -7 -7 -7 -7 -7 -6 -6 -6 -6 -6 -5 -5 -5 -5 -5 -5 -5 -5 -5 -4 -4 -4 -4 -4 -4 -4 -4 -4 -4 -3 -3 -3 -3 -3 -3 -2 -1 -1 -1 -------- Run | Jun Mat Min Mat Min Exi Min Mat Gar Mat Gar Mat Gar Fac Low Low Zio Dee Pro Fac Low Low Dat Pro Fac Was Fac Gar Fac Upp Upp War Pro Fac Was Fac Gar Fac Ext Cet Arc Hub Res Gar Res Qua Gar Sec Res Acc Com Ac0 Total Allies 899 | . . 4 . 2 . . . 7 . 1 . 2 . . . 4 . 1 7 . . . . 1 . . . . . 1 6 1 . . 1 9 1 23 1 . 1 . 17 11 . 12 38 106 78 564 . Largest Group 160 | . . 3 3 2 . . . 5 5 1 1 2 . . . 4 4 1 1 . . . . 1 . . . . . 1 1 1 . . 1 9 10 26 21 3 1 . 6 2 . 2 4 42 14 160 . Highest-Rated Group 2251 | . . 40 40 41 . . . 80 80 31 31 70 . . . 126 126 12 37 . . . . 49 . . . . . 29 56 47 . . 43 552 558 1317 1023 216 42 . 317 212 . 264 341 806 204 2251 . Highest-Rated Ally 159 | . . 31 16 31 . . . 31 16 31 31 39 . . . 39 39 12 37 . . . . 49 . . . . . 29 56 47 . . 43 99 99 159 125 119 42 . 82 137 . 148 148 148 15 15 . Total Orders 4 | . . . . . . . . . . . . . . . . . . . . . . . . . . . . . . . 1 . . . . . . . 3 . . . . . . . . . . . . STAY 2 | . . . . . . . . . . . . . . . . . . . . . . . . . . . . . . . . . . . . . . . 2 . . . . . . . . . . . . FOLLOW 1 | . . . . . . . . . . . . . . . . . . . . . . . . . . . . . . . . . . . . . . . 1 . . . . . . . . . . . . EXPLORE 1 | . . . . . . . . . . . . . . . . . . . . . . . . . . . . . . . 1 . . . . . . . . . . . . . . . . . . . . Ally Attacks 2830 | . . . 15 . . . . 8 22 1 . 26 . . . . 24 3 11 . . . . . . . . . . 3 7 4 . . 1 . 48 114 126 9 . . 59 24 . 28 86 539 117 1555 . Total Damage 59750 | . . . 193 . . . . 196 258 22 . 431 . . . . 2046 43 241 . . . . . . . . . . 39 110 57 . . 44 . 1598 3813 3632 204 . . 1781 627 . 771 2683 11158 2012 27791 . Kills 232 | . . . 1 . . . . 1 5 1 . 3 . . . . 4 . . . . . . . . . . . . . 1 . . . . . 11 20 19 . . . 11 2 . 5 11 48 7 82 . Allies Corrupted 19 | . . . 1 . . . . . . . . . . . . . . . . . . . . . . . . . . . 1 . . . . . . . . . . . . . . 1 2 5 1 8 . Allies Melted 5 | . . . . . . . . . . . . . . . . . . . . . . . . . . . . . . . 1 . . . . . . . . . . . 1 . . 1 1 . 1 . . Fabricated Assembled 513 | . . . . . . . . . . . . . . . . . . . . . . . . . . . . . . . 1 . . . . . . . . . . . . . . . . . . 512 . Intel | -11 -10 -10 -9 -9 -9 -8 -8 -8 -8 -8 -8 -8 -7 -7 -7 -7 -7 -6 -6 -6 -6 -6 -5 -5 -5 -5 -5 -5 -5 -5 -5 -4 -4 -4 -4 -4 -4 -4 -4 -4 -4 -3 -3 -3 -3 -3 -3 -2 -1 -1 -1 ------- Run | Jun Mat Min Mat Min Exi Min Mat Gar Mat Gar Mat Gar Fac Low Low Zio Dee Pro Fac Low Low Dat Pro Fac Was Fac Gar Fac Upp Upp War Pro Fac Was Fac Gar Fac Ext Cet Arc Hub Res Gar Res Qua Gar Sec Res Acc Com Ac0 Robot Analysis Total 29 | . 2 . 6 . . . 1 . . . . . . . . . . . 1 . . . . 10 . . . . . . . . . . . . 3 2 . . 2 . . . . . 1 . . 1 . Derelict Logs Recovered 19 | . . 2 . 2 . . . . . . . . . 2 1 1 . 2 . 2 2 . 1 . . . . . 2 . . 2 . . . . . . . . . . . . . . . . . . . Drone Launches 10 | . . . . . . . . . . . . . . . . . . . . . . . . . . . . . . . 10 . . . . . . . . . . . . . . . . . . . . Drone Recoveries . | . . . . . . . . . . . . . . . . . . . . . . . . . . . . . . . . . . . . . . . . . . . . . . . . . . . . Exploration | -11 -10 -10 -9 -9 -9 -8 -8 -8 -8 -8 -8 -8 -7 -7 -7 -7 -7 -6 -6 -6 -6 -6 -5 -5 -5 -5 -5 -5 -5 -5 -5 -4 -4 -4 -4 -4 -4 -4 -4 -4 -4 -3 -3 -3 -3 -3 -3 -2 -1 -1 -1 ------------- Run | Jun Mat Min Mat Min Exi Min Mat Gar Mat Gar Mat Gar Fac Low Low Zio Dee Pro Fac Low Low Dat Pro Fac Was Fac Gar Fac Upp Upp War Pro Fac Was Fac Gar Fac Ext Cet Arc Hub Res Gar Res Qua Gar Sec Res Acc Com Ac0 Turns Passed 61490 | 126 2599 1267 3804 1359 1214 533 694 1474 313 1415 32 1355 1248 503 2045 1820 3909 2185 2777 325 402 197 568 760 121 637 786 158 291 385 2777 132 186 266 309 654 247 606 241 150 297 17 749 1406 41 1593 2326 777 2816 10398 200 Spaces Moved 49830 | 19 1203 618 1550 814 867 151 348 680 134 766 23 761 651 307 1301 1256 1279 751 2483 885 1193 152 1157 977 207 564 679 313 1038 959 2038 199 377 199 268 590 226 402 149 70 239 20 465 1099 37 960 2608 1503 2358 11513 424 Core 8 | . 3 . 3 1 . . . . . . . . . . . . . . . . . 1 . . . . . . . . . . . . . . . . . . . . . . . . . . . . . Treads 3195 | . 583 618 1547 446 . . . . . . . . . . . . . . . . . . . . . . . . . . . . . . . . . . . 1 . . . . . . . . . . . Legs 17211 | 18 . . . . . . . . . . . . . . . . 1 . . . . . . . . . . . . . . . . . . . . . . . . . . . . . 1394 1503 2358 11513 424 Wheels 8324 | 1 617 . . 367 867 151 348 680 134 766 23 761 651 307 1301 1256 94 . . . . . . . . . . . . . . . . . . . . . . . . . . . . . . . . . . Hover 21092 | . . . . . . . . . . . . . . . . . 1184 751 2483 885 1193 151 1157 977 207 564 679 313 1038 959 2038 199 377 199 268 590 226 402 149 69 239 20 465 1099 37 960 1214 . . . . Flight . | . . . . . . . . . . . . . . . . . . . . . . . . . . . . . . . . . . . . . . . . . . . . . . . . . . . . Fastest Speed 18 | 100 90 160 160 100 100 115 115 115 130 130 130 130 130 145 145 130 56 266 22 22 22 22 22 22 22 22 22 22 22 22 18 18 18 20 20 81 81 81 99 81 73 81 73 81 81 81 20 30 30 30 30 Average Speed 72 | 118 129 160 162 140 106 119 115 121 130 130 130 130 140 145 145 137 255 266 48 22 22 32 24 38 22 28 24 22 22 22 68 19 18 80 80 81 81 81 99 88 80 81 78 81 81 90 45 30 40 31 31 Slowest Speed 1075 | 120 250 160 300 500 130 130 130 130 130 130 130 130 145 145 145 160 550 266 266 22 22 1075 92 92 22 94 92 22 22 22 82 73 20 81 81 81 99 81 99 250 81 81 81 99 81 99 99 30 90 90 90 Overloaded Moves 1021 | . . . . . . . . . . . . . . . . . . . . . . . . . . . . . . . 411 199 254 . . . . . . . 15 . 142 . . . . . . . . Propulsion Burnouts . | . . . . . . . . . . . . . . . . . . . . . . . . . . . . . . . . . . . . . . . . . . . . . . . . . . . . Robots Hopped 36 | . . . . . . . . . . . . . . . . . . . . . . . . . . . . . . . . . . . . . . . . . . . . . . . . . 1 35 . Cave-ins Triggered 5 | . . . . . . . . . . . . . . . . . . . . . . . . . . . . . . . . . . . . . . . . . . . . 1 . . . . 1 3 . Teleports 2 | . . . . . . . . . . . . . . . . . . . . . . . . . . . . . . . . . . . . . . . . . . . . . . . . . . 1 1 Exploration Rate (%) 63 | 3 97 97 97 97 86 22 41 81 22 90 4 82 24 56 98 86 79 93 74 95 98 82 98 31 84 14 85 11 97 94 97 45 23 85 12 94 8 70 59 83 36 2 65 42 10 95 89 63 72 93 35 Regions Visited 51 Branch Regions 25 Pre-discovered Areas 19 | . 2 1 2 1 . . . . 1 . . . . 3 . 2 . 1 . . 2 1 . 2 . . . . . 1 . . . . . . . . . . . . . . . . . . . . . Known Exits Taken 20 | . . 1 1 . . . 1 . 1 . 1 . 1 . . . . . 1 1 1 . 1 . . 1 . 1 . . . 1 . . 1 . 1 1 . . 1 1 . 1 1 . . . . . . Unknown Exits Taken 20 | 1 1 . . 1 1 1 . . . . . . . 1 1 1 1 1 . . . 1 . . . . . . 1 1 1 . . . . . . . 1 1 . . . . . . 1 1 1 1 . Scrap Searched 31 | . . 2 . 1 . . . . . . . . . 2 2 2 . 5 . 6 2 . 4 . . . . . 1 3 . 1 . . . . . . . . . . . . . . . . . . . Spaces Dug 666 | . . . 1 . . . 1 5 60 9 . 4 39 . . . 6 3 93 . . . 4 6 . 4 1 . . 3 2 . 24 . 2 . 28 . . . 3 . 20 6 . 35 10 103 100 84 10 Terrain Destroyed 6117 | . 125 39 297 11 22 56 103 44 97 57 . 42 74 18 22 . 18 9 672 7 8 1 17 14 2 16 188 5 6 10 302 6 28 6 136 77 74 250 311 1 183 . 163 112 18 172 105 230 526 1280 157 Melee 24 | . . . 1 . . . . . . . . . . . . . . . 6 . . . . 5 . 4 . . . . . . . . . . . . . . . . . 6 . 1 . . . 1 . Projectile 1488 | . . . . 1 2 55 65 34 43 54 . 36 5 . 18 . 5 5 20 7 5 1 10 2 2 8 31 3 2 3 47 2 2 6 13 8 4 11 1 . 4 . 39 20 . 40 45 187 262 339 41 AOE 4458 | . 125 39 296 10 20 . 35 . 53 . . . 62 17 . . . . 630 . . . . . . . 150 . . . 253 . 24 . 120 68 69 239 310 . 175 . 119 83 18 125 57 43 264 938 116 Terrain Rammed 2 | . . . . . . . . . . . . . . . . . . . . . . . . . . . . . . . . . . . . . . . . . . . . . . . . . . 2 . Walls Destroyed 2 | . . . . . . . . . . . . . . . . . . . . . . . . . . . . . . . . . . . . . . . . . . . . . . . . . . 2 . Machines Disabled . | . . . . . . . . . . . . . . . . . . . . . . . . . . . . . . . . . . . . . . . . . . . . . . . . . . . . Actions | -11 -10 -10 -9 -9 -9 -8 -8 -8 -8 -8 -8 -8 -7 -7 -7 -7 -7 -6 -6 -6 -6 -6 -5 -5 -5 -5 -5 -5 -5 -5 -5 -4 -4 -4 -4 -4 -4 -4 -4 -4 -4 -3 -3 -3 -3 -3 -3 -2 -1 -1 -1 --------- Run | Jun Mat Min Mat Min Exi Min Mat Gar Mat Gar Mat Gar Fac Low Low Zio Dee Pro Fac Low Low Dat Pro Fac Was Fac Gar Fac Upp Upp War Pro Fac Was Fac Gar Fac Ext Cet Arc Hub Res Gar Res Qua Gar Sec Res Acc Com Ac0 Total 70176 | 95 1948 824 2415 980 1101 426 524 1173 214 1077 25 1001 906 352 1406 1354 1720 869 3653 984 1285 277 1339 1236 247 968 1146 380 1072 1070 3221 256 470 257 340 749 276 628 221 145 296 20 765 1452 45 1499 3410 1735 3969 17874 481 Wait 12147 | 58 505 132 429 76 67 176 21 222 11 130 2 80 175 28 46 33 157 58 751 52 35 86 77 135 10 311 247 44 9 63 773 16 58 6 21 124 30 27 15 53 5 . 60 125 5 214 121 56 1146 5054 12 Move 49729 | 18 1202 617 1549 813 866 150 348 679 134 765 23 758 650 306 1300 1255 1278 750 2482 884 1192 151 1156 976 206 563 678 312 1037 958 2037 198 377 198 268 588 225 401 148 69 238 20 464 1098 37 959 2607 1502 2355 11461 423 Hop 17 | . . . . . . . . . . . . . . . . . . . . . . . . . . . . . . . . . . . . . . . . . . . . . . . . . 1 16 . Pick Up 210 | . 4 5 11 5 24 . 4 . . . . . . . . 21 21 . 6 . 1 2 1 1 1 2 1 . . . 28 1 1 3 . 1 1 . . 2 . . 2 3 . 2 18 4 2 30 2 Fast Attach 472 | 4 16 2 16 3 12 13 2 12 1 1 . 4 6 1 . 5 23 . 9 1 . 7 2 . . 9 5 . . . 50 . 2 3 3 . 2 . . 1 2 . 2 19 . 3 71 10 21 129 . Attach 118 | . . 2 2 2 11 . 4 3 . . . . . . . 13 12 . 9 . 1 . 1 1 . . . . . . 19 1 . . . . . . . 2 . . 1 1 . . 8 4 2 18 1 Detach 47 | . 1 . 2 1 9 3 1 3 . . . . 1 . . 3 4 . 4 . . . . . . 1 . . . . 2 . . . . . . . . . . . . . . . 4 . . 8 . Swap 80 | . 6 . 8 2 4 1 . 1 . . . . . . . . 5 . 4 1 . 3 1 3 . 1 . . . . 8 . . . . . 1 . 1 1 . . 1 3 . 2 6 . . 14 3 Drop 596 | 1 16 6 16 8 33 10 4 10 1 1 . 4 4 1 . 22 41 . 11 1 1 9 2 1 2 8 3 . . . 75 . 4 8 3 1 3 . . 3 . . 2 18 . 5 78 13 20 146 1 Fire 4332 | 14 170 37 271 44 48 45 94 128 47 86 . 101 60 10 43 . 90 35 275 24 34 16 78 56 28 40 117 16 18 38 121 28 19 39 23 15 14 51 25 12 47 . 82 134 3 162 332 115 319 689 39 Melee 175 | . . . 6 . 15 . . . . . . . . . . 2 21 . 29 . 3 . . 21 . 12 . . . . . . . . . . . . . . . . . 8 . 3 12 . . 43 . Ram 4 | . . . . . . . . . . 1 . . . . . . . . . . . . . . . . . . . . . . . . . . . 1 . . . . . . . . . . . 2 . Kick 1 | . . . . . . . . . . . . . . . . . . . . . . . . . . . . . . . . . . . . . . . . . . . . . . . . . . 1 . Crush 1 | . . . 1 . . . . . . . . . . . . . . . . . . . . . . . . . . . . . . . . . . . . . . . . . . . . . . . . Escape Stasis 408 | . . . . . . . . 23 . 48 . 16 . . . . . . . . . . . 14 . . 34 . . . . . . . . . . 39 . . . . 91 . . 78 26 . 9 30 . Rewire 164 | . . . . . . . . 26 . . . 5 . . . . . . . . . . . . . . . . . . 9 . . . . 20 . 48 . . . . . . . 18 36 2 . . . Trap . | . . . . . . . . . . . . . . . . . . . . . . . . . . . . . . . . . . . . . . . . . . . . . . . . . . . . Miscellaneous 1675 | . 28 23 104 26 12 28 46 66 20 45 . 33 10 6 17 . 68 26 73 21 18 3 21 28 . 21 61 8 8 11 99 12 9 . 22 . . 61 32 2 4 . 60 43 . 53 91 29 94 233 . Route ------- -11/Junkyard -10/Materials (discovered 4 exits: *Mat x3 / *Min) -10/Mines (discovered 2 exits: *Mat x2) -9/Materials (discovered 4 exits: *Mat x3 / *Min) -9/Mines (discovered 3 exits: *Mat x2 / *Exi) -9/Exiles -8/Mines -8/Materials (discovered 4 exits: *Fac x2 / Sto / Gar) -8/Garrison (discovered 3 exits: *Mat x3) -8/Materials (discovered 3 exits: *Fac / *Sto / Gar) -8/Garrison (discovered 3 exits: *Mat x3) -8/Materials -8/Garrison (discovered 3 exits: *Fac x3) -7/Factory (discovered 2 exits: *Low x2) -7/Lower Caves -7/Lower Caves (discovered 2 exits: *Fac / *Zio) -7/Zion (discovered 2 exits: [*Dee] / [*Pro]) -7/Deep Caves -6/Proximity Caves -6/Factory (discovered 5 exits: *Fac x3 / *Low x2) -6/Lower Caves (discovered 2 exits: *Low / *Dat) -6/Lower Caves (discovered 2 exits: *Fac / *Dat) -6/Data Miner -5/Proximity Caves -5/Factory (discovered 6 exits: *Fac x4 / Upp x2) -5/Waste -5/Factory (discovered 3 exits: Upp x2 / Gar) -5/Garrison (discovered 3 exits: *Fac x3) -5/Factory -5/Upper Caves -5/Upper Caves -5/Warlord -4/Proximity Caves -4/Factory (discovered 6 exits: *Res x4 / Ext x2) -4/Waste -4/Factory (discovered 5 exits: Res x4 / Gar) -4/Garrison (discovered 3 exits: *Fac x3) -4/Factory (discovered 8 exits: Res x4 / Upp x2 / *Ext x2) -4/Extension (discovered 2 exits: *Res / *Cet) -4/Cetus (discovered 2 exits: *Res / *Arc) -4/Archives (discovered 2 exits: *Res / *Hub) -4/Hub_04(d) -3/Research (discovered 2 exits: Qua / Gar) -3/Garrison (discovered 2 exits: *Res x2) -3/Research -3/Quarantine -3/Garrison (discovered 3 exits: *Sec x3) -3/Section 7 -2/Research (discovered 3 exits: *Acc x2 / [*Tes]) -1/Access (discovered 2 exits: *Sur / *Com) -1/Command (discovered 3 exits: *Sur x2 / [*Ac0]) -1/Access_0 To Fleet Rendezvous History --------- Turn | Location | Event 6 | -11/Junkyard | Upgraded with Utility slot (x3) 6 | -11/Junkyard | Upgraded with Weapon slot (x1) 58 | -11/Junkyard | Discovered new exit (range 2) 127 | -11/Junkyard | Entered Materials 313 | -10/Materials | Build established: Mutant 638 | -10/Materials | Discovered new exit (range 16) 892 | -10/Materials | Build established: Scavenger-Skirmisher 1007 | -10/Materials | Reached level 2 1192 | -10/Materials | Central database locked down 1207 | -10/Materials | Discovered new exit (range 14) 1226 | -10/Materials | Identified exit to Materials 1322 | -10/Materials | Build established: Hacker-Skirmisher 1401 | -10/Materials | Reached level 3 1418 | -10/Materials | Upgraded with Utility slot (x1) 2179 | -10/Materials | Reached level 4 2188 | -10/Materials | Upgraded with Propulsion slot (x1) 2726 | -10/Materials | Entered Mines 2755 | -10/Mines | Build established: Hacker-Mutant 2762 | -10/Mines | Met a Derelict bent on vengeance 2924 | -10/Mines | Discovered exit to Materials (range 9) 3255 | -10/Mines | Received a Mining Laser from a helpful Derelict 3457 | -10/Mines | Met a Derelict who couldn't figure out how to use a Trap Extractor 3531 | -10/Mines | Assisted by bots powering up and referring to "LRC-V3" 3540 | -10/Mines | Learned Materials emergency access door positions 3829 | -10/Mines | Reached level 5 3875 | -10/Mines | Upgraded with Utility slot (x1) 3876 | -10/Mines | Found the Drone Emporium 3887 | -10/Mines | Found Prototype Device 3963 | -10/Mines | Discovered exit to Materials (range 16) 3993 | -10/Mines | Entered Materials 3993 | -9/Materials | Accompanied by 3 allies 3995 | -9/Materials | Reached level 6 4372 | -9/Materials | Discovered new exit (range 9) 4586 | -9/Materials | Reached level 7 4768 | -9/Materials | Identified Sensor Drone Bay 4987 | -9/Materials | Identified exit to Mines 5231 | -9/Materials | Reached level 8 5233 | -9/Materials | Upgraded with Utility slot (x1) 5334 | -9/Materials | Discovered new exit (range 8) 5539 | -9/Materials | Core integrity fell below 50% 5573 | -9/Materials | Core integrity fell below 20% 5707 | -9/Materials | Reached level 9 5983 | -9/Materials | Discovered new exit (range 3) 6393 | -9/Materials | First assault squad dispatched 6479 | -9/Materials | Reached level 10 6514 | -9/Materials | Destroyed 8 combat bots 6568 | -9/Materials | Upgraded with Power slot (x1) 6568 | -9/Materials | Upgraded with Weapon slot (x1) 7352 | -9/Materials | Sterilization system engaged 7352 | -9/Materials | Non-combat units ordered to evacuate 7360 | -9/Materials | Destroyed 9 combat bots 7452 | -9/Materials | Combat units ordered to evacuate 7652 | -9/Materials | Ambient heat levels rising (+10) 7797 | -9/Materials | Entered Mines 7803 | -9/Mines | Reached level 11 7920 | -9/Mines | Met a Derelict shopkeep closing up shop 7985 | -9/Mines | Excavation squad dispatched 7985 | -9/Mines | A large section of the Mines collapsed 8059 | -9/Mines | Discovered new exit (range 4) 8097 | -9/Mines | Build established: Hacker-Gunner 8200 | -9/Mines | Received a Rocket Launcher from a helpful Derelict 8314 | -9/Mines | Learned location of 1 exit from Materials 8439 | -9/Mines | Discovered new exit (range 9) 8449 | -9/Mines | Learned location of Storage (-8) 8702 | -9/Mines | Learned Materials emergency access door positions 9152 | -9/Mines | Deemed a non-threat by the Exiles lab entrance 9152 | -9/Mines | Discovered new exit (range 5) 9156 | -9/Mines | Entered Exiles 9206 | -9/Exiles | Met 8R-AWN 9223 | -9/Exiles | Met EX-HEX 9253 | -9/Exiles | Met EX-BIN 9264 | -9/Exiles | Aligned with FarCom system 9265 | -9/Exiles | Given EX-Vault access code 9400 | -9/Exiles | Met EX-DEC 9457 | -9/Exiles | Build established: Hacker-Mutant 9628 | -9/Exiles | Opened EX-Vault 9634 | -9/Exiles | Found Prototype Energy Gun 9641 | -9/Exiles | Found Prototype Processor 9665 | -9/Exiles | Warned to stay clear of 0b10 Research branches 9790 | -9/Exiles | Attacked by the Exiles 9903 | -9/Exiles | Found Prototype Ballistic Gun 9961 | -9/Exiles | Destroyed 8R-AWN 9965 | -9/Exiles | Found Prototype Processor 9965 | -9/Exiles | Identified Exp. Targeting Computer 9976 | -9/Exiles | Found Prototype Protection 9976 | -9/Exiles | Identified 8R-AWN's Armor/EX 9981 | -9/Exiles | Found Prototype Protection 9981 | -9/Exiles | Identified 8R-AWN's Armor/TH 9994 | -9/Exiles | Found Prototype Device 9994 | -9/Exiles | Identified AS-neutralizer No. 17b 10008 | -9/Exiles | Identified 8R-AWN's Boregun 10009 | -9/Exiles | Found 8R-AWN's Boregun 10118 | -9/Exiles | Destroyed EX-BIN 10147 | -9/Exiles | Destroyed EX-DEC 10177 | -9/Exiles | Found Prototype Device 10177 | -9/Exiles | Identified System Purifier 10190 | -9/Exiles | Found Prototype Processor 10190 | -9/Exiles | Identified Exp. Core Analyzer 10194 | -9/Exiles | Destroyed EX-HEX 10355 | -9/Exiles | Discovered new exit (range 14) 10369 | -9/Exiles | Build established: Scavenger-Mutant 10370 | -9/Exiles | Entered Mines 10444 | -8/Mines | Reached level 12 10465 | -8/Mines | AD-0RF came to Exiles' defense 10468 | -8/Mines | Destroyed 10 combat bots 10499 | -8/Mines | Destroyed AD-0RF 10561 | -8/Mines | Found Prototype Device 10561 | -8/Mines | Identified Exp. Thermal Shield 10577 | -8/Mines | Found Exp. Targeting Computer 10881 | -8/Mines | Discovered new exit (range 13) 10903 | -8/Mines | Entered Materials 10904 | -8/Materials | Identified exit to Storage 11018 | -8/Materials | Reached level 13 11067 | -8/Materials | Destroyed 8 combat bots 11129 | -8/Materials | Discovered new exit (range 3) 11303 | -8/Materials | First assault squad dispatched 11438 | -8/Materials | Discovered new exit (range 15) 11443 | -8/Materials | Destroyed 9 combat bots 11456 | -8/Materials | Identified exit to Factory 11509 | -8/Materials | Garrison activated, responded to threat 11531 | -8/Materials | Reached level 14 11565 | -8/Materials | Destroyed 8 combat bots 11597 | -8/Materials | Identified exit to Garrison 11597 | -8/Materials | Entered Garrison 11630 | -8/Garrison | Triggered checkpoint 11716 | -8/Garrison | Triggered checkpoint 11737 | -8/Garrison | Garrison Relay disabled 11842 | -8/Garrison | Triggered checkpoint 11930 | -8/Garrison | Triggered checkpoint 11989 | -8/Garrison | Discovered new exit (range 12) 11994 | -8/Garrison | Discovered new exit (range 16) 11994 | -8/Garrison | Discovered new exit (range 46) 11994 | -8/Garrison | Discovered new exit (range 57) 11994 | -8/Garrison | Identified exit to Materials 12016 | -8/Garrison | Triggered checkpoint 12064 | -8/Garrison | Garrison Relay disabled 12212 | -8/Garrison | Triggered checkpoint 12212 | -8/Garrison | Upgraded with Utility slot (x1) 12397 | -8/Garrison | Rescued a captive Derelict 12399 | -8/Garrison | Rescued a captive Derelict 12421 | -8/Garrison | Reached level 15 12422 | -8/Garrison | Triggered checkpoint 12518 | -8/Garrison | Spotted B-75 Beast 12544 | -8/Garrison | Destroyed B-75 Beast 12553 | -8/Garrison | Upgraded with Weapon slot (x1) 12554 | -8/Garrison | Upgraded with Power slot (x1) 12746 | -8/Garrison | Garrison Relay disabled 13071 | -8/Garrison | Entered Materials 13071 | -8/Materials | Accompanied by 5 allies 13071 | -8/Materials | Discovered exit to Storage (range 6) 13212 | -8/Materials | Central database locked down 13317 | -8/Materials | Garrison activated, responded to threat 13368 | -8/Materials | Discovered exit to Factory (range 13) 13371 | -8/Materials | Destroyed 12 combat bots 13384 | -8/Materials | Identified exit to Garrison 13384 | -8/Materials | Entered Garrison 13397 | -8/Garrison | Triggered checkpoint 13432 | -8/Garrison | Garrison Relay disabled 13451 | -8/Garrison | Identified exit to Materials 13810 | -8/Garrison | Triggered checkpoint 13821 | -8/Garrison | Destroyed 8 combat bots 13857 | -8/Garrison | Triggered checkpoint 13913 | -8/Garrison | Triggered checkpoint 13979 | -8/Garrison | Garrison Relay disabled 14076 | -8/Garrison | Triggered checkpoint 14245 | -8/Garrison | Core integrity fell below 50% 14363 | -8/Garrison | Garrison Relay disabled 14363 | -8/Garrison | Reached level 16 14507 | -8/Garrison | Triggered checkpoint 14544 | -8/Garrison | Rescued a captive Derelict 14597 | -8/Garrison | Discovered exit to Materials (range 75) 14597 | -8/Garrison | Discovered exit to Materials (range 51) 14597 | -8/Garrison | Discovered exit to Materials (range 6) 14799 | -8/Garrison | Entered Materials 14799 | -8/Materials | Accompanied by 1 ally 14831 | -8/Materials | Identified exit to Garrison 14831 | -8/Materials | Entered Garrison 14831 | -8/Garrison | Accompanied by 1 ally 14894 | -8/Garrison | Triggered checkpoint 14909 | -8/Garrison | Garrison Relay disabled 14909 | -8/Garrison | Garrison Relay disabled 15212 | -8/Garrison | Triggered checkpoint 15302 | -8/Garrison | Garrison Relay disabled 15445 | -8/Garrison | Triggered checkpoint 15514 | -8/Garrison | Discovered exit to Factory (range 12) 15524 | -8/Garrison | Discovered exit to Factory (range 12) 15524 | -8/Garrison | Discovered exit to Factory (range 45) 15524 | -8/Garrison | Discovered exit to Factory (range 49) 15580 | -8/Garrison | Triggered checkpoint 15676 | -8/Garrison | Spotted B-75 Beast 15686 | -8/Garrison | Destroyed B-75 Beast 15897 | -8/Garrison | Triggered checkpoint 15989 | -8/Garrison | Attempted to access garrison exit controls, blocked by remote lockdown 15992 | -8/Garrison | Build established: Hacker-Mutant 16186 | -8/Garrison | Entered Factory 16337 | -7/Factory | Fabricated Dispersion Rifle (x2) 16820 | -7/Factory | Build established: Scavenger-Mutant 16842 | -7/Factory | Reached level 17 16844 | -7/Factory | Found Rocket Array 16986 | -7/Factory | First assault squad dispatched 17270 | -7/Factory | Discovered new exit (range 16) 17394 | -7/Factory | Identified exit to Lower Caves 17434 | -7/Factory | Entered Lower Caves 17440 | -7/Lower Caves | Met a Warlord Commander 17441 | -7/Lower Caves | Learned location of Warlord (-5) 17445 | -7/Lower Caves | Found Encrypted Comm Array 17544 | -7/Lower Caves | Encountered a Warlord checkpoint 17876 | -7/Lower Caves | Discovered new exit (range 13) 17937 | -7/Lower Caves | Entered another Lower Caves area 17982 | -7/Lower Caves | Attracted the attention of an 0b10 checkpoint 18164 | -7/Lower Caves | Spotted B-75 Beast 18199 | -7/Lower Caves | Destroyed B-75 Beast 18266 | -7/Lower Caves | Encountered a Warlord checkpoint 18545 | -7/Lower Caves | Discovered new exit (range 9) 19429 | -7/Lower Caves | Learned location of 1 exit from Factory 19575 | -7/Lower Caves | Discovered new exit (range 11) 19982 | -7/Lower Caves | Entered Zion 19984 | -7/Zion | Reached level 18 19988 | -7/Zion | Upgraded with Utility slot (x1) 20016 | -7/Zion | Gained Derelict followers 20069 | -7/Zion | Acquired unknown access codes intercepted by a Zionite 20080 | -7/Zion | Discovered new exit (range 15) 20124 | -7/Zion | Found CR-A16's Pointy Stick 20399 | -7/Zion | Found Prototype Hackware 20400 | -7/Zion | Identified Exp. System Shield 20404 | -7/Zion | Found Prototype Processor 20405 | -7/Zion | Identified Exp. Armor Integrity Analyzer 20419 | -7/Zion | Found Exp. Targeting Computer 20590 | -7/Zion | Learned Factory emergency access door positions 20706 | -7/Zion | Build established: Hacker-Mutant 21504 | -7/Zion | Build established: Hacker-Gunner 21777 | -7/Zion | Opened final containment barrier to the Deep Caves 21798 | -7/Zion | Discovered new exit (range 3) 21798 | -7/Zion | Saw the warning signs outside the Deep Caves entrance 21802 | -7/Zion | Entered Deep Caves 21802 | -7/Deep Caves | Accompanied by 4 allies 21876 | -7/Deep Caves | Z-Facility disabled 21891 | -7/Deep Caves | Attacked by Z-Imprinter 21915 | -7/Deep Caves | Destroyed Z-Imprinter 21957 | -7/Deep Caves | Found Prototype Protection 21957 | -7/Deep Caves | Identified Zio. Weapon Casing 21960 | -7/Deep Caves | Found Prototype Device 21960 | -7/Deep Caves | Identified Zio. Metafield Generator 22047 | -7/Deep Caves | Found Zio. Weapon Casing 22068 | -7/Deep Caves | Build established: Hacker-Mutant 22421 | -7/Deep Caves | Found Prototype Protection 22421 | -7/Deep Caves | Identified Zio. Heavy Carapace 22472 | -7/Deep Caves | Found Zio. Heavy Carapace 22708 | -7/Deep Caves | Build established: Scavenger-Mutant 22781 | -7/Deep Caves | Found Zio. Weapon Casing 23078 | -7/Deep Caves | Spotted as-07246 23151 | -7/Deep Caves | Destroyed as-07246 23187 | -7/Deep Caves | Triggered Deep Caves wall 23203 | -7/Deep Caves | Destroyed AS-85555 23213 | -7/Deep Caves | Spotted AS-72561 23217 | -7/Deep Caves | Exposed GOLEM chamber 23225 | -7/Deep Caves | Core integrity fell below 50% 23229 | -7/Deep Caves | Destroyed 38 combat bots 23232 | -7/Deep Caves | Spotted as-50230 23245 | -7/Deep Caves | Destroyed AS-72561 23248 | -7/Deep Caves | Destroyed as-50230 23454 | -7/Deep Caves | Found Mobile Assembly Unit 23496 | -7/Deep Caves | Found Prototype Storage 23496 | -7/Deep Caves | Identified Superbattery 25659 | -7/Deep Caves | Discovered new exit (range 6) 25711 | -7/Deep Caves | Entered Proximity Caves 26050 | -6/Proximity Caves | Attracted the attention of an 0b10 base 26105 | -6/Proximity Caves | Destroyed 7 combat bots 27392 | -6/Proximity Caves | Spotted B-75 Beast 27441 | -6/Proximity Caves | Destroyed B-75 Beast 27596 | -6/Proximity Caves | Discovered new exit (range 5) 27896 | -6/Proximity Caves | Entered Factory 27897 | -6/Factory | Identified exit to Lower Caves 27898 | -6/Factory | Reached level 19 27904 | -6/Factory | Upgraded with Propulsion slot (x1) 28107 | -6/Factory | Reached level 20 28107 | -6/Factory | Upgraded with Propulsion slot (x1) 28559 | -6/Factory | Build established: Scavenger-Assassin 28596 | -6/Factory | First assault squad dispatched 29179 | -6/Factory | Destroyed 8 combat bots 29336 | -6/Factory | High security lockdown imminent 29344 | -6/Factory | Reached level 21 29347 | -6/Factory | Upgraded with Propulsion slot (x1) 29365 | -6/Factory | Destroyed 7 combat bots 29416 | -6/Factory | High security lockdown engaged 29610 | -6/Factory | Destroyed 22 combat bots 29642 | -6/Factory | Spotted B-75 Beast 29658 | -6/Factory | Revealed the true nature of CR-A16's Pointy Stick 29661 | -6/Factory | Destroyed B-75 Beast 29782 | -6/Factory | Destroyed 19 combat bots 29785 | -6/Factory | Discovered new exit (range 18) 29798 | -6/Factory | Identified exit to Factory 29841 | -6/Factory | Reached level 22 29867 | -6/Factory | Build established: Scavenger-Scout 29871 | -6/Factory | Core integrity fell below 50% 29917 | -6/Factory | Destroyed 19 combat bots 29935 | -6/Factory | Garrison activated, responded to threat 30026 | -6/Factory | Sterilization system engaged 30026 | -6/Factory | Non-combat units ordered to evacuate 30069 | -6/Factory | Destroyed 33 combat bots 30098 | -6/Factory | Local machine network offline 30126 | -6/Factory | Combat units ordered to evacuate 30280 | -6/Factory | Discovered exit to Factory (range 19) 30326 | -6/Factory | Ambient heat levels rising (+10) 30367 | -6/Factory | Discovered exit to Lower Caves (range 6) 30476 | -6/Factory | Ambient heat levels rising (+10) 30536 | -6/Factory | Discovered exit to Factory (range 9) 30626 | -6/Factory | Ambient heat levels rising (+10) 30673 | -6/Factory | Entered Lower Caves 30870 | -6/Lower Caves | Discovered new exit (range 19) 30881 | -6/Lower Caves | Identified exit to Lower Caves 30902 | -6/Lower Caves | A Derelict revealed a hidden shortcut to meet someone special 30907 | -6/Lower Caves | Identified exit to Data Miner 30911 | -6/Lower Caves | Learned Factory stockpile data 30998 | -6/Lower Caves | Entered another Lower Caves area 31017 | -6/Lower Caves | Spotted B-75 Beast 31024 | -6/Lower Caves | Build established: Scavenger-Sprinter 31059 | -6/Lower Caves | Destroyed B-75 Beast 31245 | -6/Lower Caves | Discovered exit to Data Miner (range 11) 31248 | -6/Lower Caves | Learned location of Extension (-4) 31279 | -6/Lower Caves | Encountered a Warlord checkpoint 31317 | -6/Lower Caves | Discovered exit to Factory (range 13) 31400 | -6/Lower Caves | Entered Data Miner 31400 | -6/Data Miner | Discovered new exit (range 6) 31404 | -6/Data Miner | Met Data Miner 31420 | -6/Data Miner | Learned location of Section 7 (-3) 31420 | -6/Data Miner | Acquired the access code to Warlord's prototype stash 31422 | -6/Data Miner | Received God Mode back door access code from Data Miner 31432 | -6/Data Miner | Data Conduit disabled 31432 | -6/Data Miner | Destroyed Data Miner 31435 | -6/Data Miner | Found Prototype Hackware 31435 | -6/Data Miner | Identified System Mapper 31437 | -6/Data Miner | Found Prototype Hackware 31437 | -6/Data Miner | Identified Quantum Router 31440 | -6/Data Miner | Found Prototype Hackware 31440 | -6/Data Miner | Identified Ghost Barrier 31551 | -6/Data Miner | Found Exp. Thermal Shield 31597 | -6/Data Miner | Entered Proximity Caves 31599 | -5/Proximity Caves | Reached level 23 31624 | -5/Proximity Caves | Attracted the attention of an 0b10 checkpoint 31742 | -5/Proximity Caves | Spotted B-75 Beast 31777 | -5/Proximity Caves | Destroyed B-75 Beast 31836 | -5/Proximity Caves | Destroyed 7 combat bots 31847 | -5/Proximity Caves | Discovered exit to Factory (range 7) 31927 | -5/Proximity Caves | Learned Factory machine intel 32024 | -5/Proximity Caves | Build established: Wizard-Sprinter 32066 | -5/Proximity Caves | Destroyed 7 combat bots 32082 | -5/Proximity Caves | Learned location of 1 exit from Factory 32082 | -5/Proximity Caves | Learned location of 1 exit from Research 32082 | -5/Proximity Caves | Learned 8 Research zone layouts 32082 | -5/Proximity Caves | Learned Factory emergency access door positions 32082 | -5/Proximity Caves | Learned Extension stockpile data 32106 | -5/Proximity Caves | Upgraded with Weapon slot (x1) 32165 | -5/Proximity Caves | Entered Factory 32166 | -5/Factory | Identified exit to Factory 32167 | -5/Factory | Identified exit to Upper Caves 32170 | -5/Factory | Loaded intel: 272 machine locations 32282 | -5/Factory | Reached level 24 32537 | -5/Factory | Upgraded with Weapon slot (x1) 32676 | -5/Factory | Local machine network offline 32925 | -5/Factory | Sucked down chute 32925 | -5/Factory | Entered Waste 32934 | -5/Waste | Spotted C-40 Crusher 32937 | -5/Waste | Spotted C-40 Crusher 32938 | -5/Waste | Spotted C-40 Crusher 32940 | -5/Waste | EMP discharged 32940 | -5/Waste | System corruption reached 10% 32961 | -5/Waste | Destroyed C-40 Crusher 32983 | -5/Waste | Destroyed C-40 Crusher 32986 | -5/Waste | Spotted C-40 Crusher 33002 | -5/Waste | Destroyed C-40 Crusher 33014 | -5/Waste | Spotted C-40 Crusher 33027 | -5/Waste | Spotted C-40 Crusher 33029 | -5/Waste | Destroyed C-40 Crusher 33040 | -5/Waste | EMP discharged 33042 | -5/Waste | Discovered new exit (range 11) 33046 | -5/Waste | Entered Factory 33355 | -5/Factory | Identified exit to DSF 33414 | -5/Factory | Core integrity fell below 50% 33646 | -5/Factory | First assault squad dispatched 33677 | -5/Factory | Identified exit to Garrison 33683 | -5/Factory | Entered Garrison 33716 | -5/Garrison | Triggered checkpoint 33756 | -5/Garrison | Garrison Relay disabled 33766 | -5/Garrison | Phase Generator disabled 33791 | -5/Garrison | Identified exit to Factory 33825 | -5/Garrison | Spotted B-75 Beast 33836 | -5/Garrison | Destroyed 7 combat bots 33880 | -5/Garrison | Reached level 25 33901 | -5/Garrison | Destroyed 7 combat bots 33933 | -5/Garrison | Destroyed B-75 Beast 34039 | -5/Garrison | Triggered checkpoint 34039 | -5/Garrison | Garrison Relay disabled 34218 | -5/Garrison | Destroyed 7 combat bots 34249 | -5/Garrison | Triggered checkpoint 34249 | -5/Garrison | Triggered checkpoint 34284 | -5/Garrison | Triggered checkpoint 34331 | -5/Garrison | Garrison Relay disabled 34435 | -5/Garrison | Garrison Relay disabled 34442 | -5/Garrison | Triggered checkpoint 34469 | -5/Garrison | Entered Factory 34623 | -5/Factory | Discovered exit to Upper Caves (range 15) 34627 | -5/Factory | Entered Upper Caves 34659 | -5/Upper Caves | Attracted the attention of an 0b10 checkpoint 34747 | -5/Upper Caves | Learned Factory emergency access door positions 34757 | -5/Upper Caves | Discovered new exit (range 10) 34791 | -5/Upper Caves | Learned Factory trap positions 34918 | -5/Upper Caves | Entered another Upper Caves area 34929 | -5/Upper Caves | Attracted the attention of an 0b10 checkpoint 35078 | -5/Upper Caves | Learned location of Armory (-3) 35078 | -5/Upper Caves | Learned Extension stockpile data 35078 | -5/Upper Caves | Learned Extension terminal intel 35078 | -5/Upper Caves | Learned Armory terminal intel 35078 | -5/Upper Caves | Learned Extension garrison access intel 35078 | -5/Upper Caves | Learned Armory garrison access intel 35089 | -5/Upper Caves | Destroyed 11 combat bots 35185 | -5/Upper Caves | Discovered new exit (range 9) 35303 | -5/Upper Caves | Entered Warlord 35314 | -5/Warlord | System corruption cleaned by Quarantine Array 35348 | -5/Warlord | Met Warlord 35350 | -5/Warlord | Opened Warlord's prototype stash 35368 | -5/Warlord | Found Prototype Reactor 35368 | -5/Warlord | Identified Vortex Chain Reactor 35372 | -5/Warlord | Found Exp. Core Analyzer 35373 | -5/Warlord | Warlord's base attacked by MAIN.C 35388 | -5/Warlord | Found Prototype Energy Cannon 35388 | -5/Warlord | Identified Vortex Driver 35393 | -5/Warlord | Found Prototype Launcher 35393 | -5/Warlord | Identified Vortex Catalyst Activator 35399 | -5/Warlord | Found Vortex Driver 35472 | -5/Warlord | Found Prototype Energy Gun 35473 | -5/Warlord | Identified Plasma Storm 35545 | -5/Warlord | Found Prototype Device 35545 | -5/Warlord | Identified Minesniffer Drone Bay 35719 | -5/Warlord | Found Prototype Ballistic Cannon 35719 | -5/Warlord | Identified Hvy. Autocannon 35723 | -5/Warlord | Warlord forces counterattacked 35753 | -5/Warlord | Spotted Executioner 35810 | -5/Warlord | Destroyed 7 combat bots 35814 | -5/Warlord | Spotted Striker 35850 | -5/Warlord | Found Exp. Core Analyzer 35922 | -5/Warlord | Opened side exit 35974 | -5/Warlord | Spotted Executioner 35974 | -5/Warlord | Spotted Executioner 35976 | -5/Warlord | Discovered new exit (range 13) 35977 | -5/Warlord | Destroyed Executioner 35979 | -5/Warlord | Destroyed Executioner 35986 | -5/Warlord | Spotted Executioner 35990 | -5/Warlord | Destroyed Executioner 36002 | -5/Warlord | Found Prototype Device 36002 | -5/Warlord | Identified Adv. Kinecellerator 36011 | -5/Warlord | Destroyed 12 combat bots 36048 | -5/Warlord | Warlord base infiltrated, sounded retreat 36064 | -5/Warlord | Build established: Wizard-Mutant 36073 | -5/Warlord | Spotted Striker 36075 | -5/Warlord | Reached level 26 36104 | -5/Warlord | Destroyed 16 combat bots 36173 | -5/Warlord | Spotted Executioner 36177 | -5/Warlord | Spotted Executioner 36178 | -5/Warlord | Spotted Executioner 36180 | -5/Warlord | Destroyed Executioner 36182 | -5/Warlord | Destroyed Executioner 36209 | -5/Warlord | Destroyed 16 combat bots 36273 | -5/Warlord | Spotted Executioner 36275 | -5/Warlord | Destroyed Executioner 36298 | -5/Warlord | Destroyed 17 combat bots 36374 | -5/Warlord | Destroyed Striker 36403 | -5/Warlord | Destroyed 17 combat bots 36475 | -5/Warlord | Spotted Executioner 36475 | -5/Warlord | Spotted Striker 36475 | -5/Warlord | Destroyed Executioner 36477 | -5/Warlord | Destroyed Striker 36504 | -5/Warlord | Destroyed 17 combat bots 36573 | -5/Warlord | Destroyed Executioner 36602 | -5/Warlord | Destroyed 19 combat bots 36673 | -5/Warlord | Destroyed Striker 36673 | -5/Warlord | Spotted Striker 36677 | -5/Warlord | Destroyed Striker 36692 | -5/Warlord | Spotted Striker 36699 | -5/Warlord | Destroyed Striker 36723 | -5/Warlord | Destroyed 24 combat bots 36754 | -5/Warlord | Destroyed 9 combat bots 36775 | -5/Warlord | Spotted Striker 36780 | -5/Warlord | Destroyed Striker 36810 | -5/Warlord | Destroyed 18 combat bots 37009 | -5/Warlord | Spotted Striker 37009 | -5/Warlord | Destroyed Striker 37021 | -5/Warlord | Reached level 27 37033 | -5/Warlord | Upgraded with Propulsion slot (x1) 37071 | -5/Warlord | Spotted Striker 37096 | -5/Warlord | Destroyed Striker 37098 | -5/Warlord | Spotted Striker 37110 | -5/Warlord | Destroyed Striker 37149 | -5/Warlord | Destroyed 10 combat bots 37260 | -5/Warlord | Spotted Striker 37323 | -5/Warlord | Destroyed Striker 37360 | -5/Warlord | Found System Purifier 37472 | -5/Warlord | Found Prototype Special Weapon 37472 | -5/Warlord | Identified RU-N14's Throwing Claymores v3 37476 | -5/Warlord | Found RU-N14's Throwing Claymores v3 37481 | -5/Warlord | Found RU-N14's Throwing Claymores v3 37483 | -5/Warlord | Found RU-N14's Throwing Claymores v3 37485 | -5/Warlord | Found RU-N14's Throwing Claymores v3 37488 | -5/Warlord | Found RU-N14's Throwing Claymores v3 38080 | -5/Warlord | Entered Proximity Caves 38096 | -4/Proximity Caves | Learned Research terminal intel 38123 | -4/Proximity Caves | Learned Research trap positions 38159 | -4/Proximity Caves | Destroyed 7 combat bots 38210 | -4/Proximity Caves | Discovered exit to Factory (range 13) 38212 | -4/Proximity Caves | Entered Factory 38213 | -4/Factory | Identified exit to Extension 38214 | -4/Factory | Loaded intel: 107 trap records 38228 | -4/Factory | Discovered new exit (range 10) 38231 | -4/Factory | Found Prototype Launcher 38231 | -4/Factory | Identified Com. Tesla Bomb Launcher 38238 | -4/Factory | Identified exit to Research 38398 | -4/Factory | Sucked down chute 38398 | -4/Factory | Entered Waste 38400 | -4/Waste | Found Prototype Reactor 38400 | -4/Waste | Identified Singularity Reactor 38417 | -4/Waste | Spotted C-40 Crusher 38419 | -4/Waste | Destroyed C-40 Crusher 38443 | -4/Waste | Spotted C-40 Crusher 38445 | -4/Waste | Destroyed C-40 Crusher 38447 | -4/Waste | Spotted C-40 Crusher 38457 | -4/Waste | Destroyed C-40 Crusher 38468 | -4/Waste | Destroyed C-40 Crusher 38479 | -4/Waste | Spotted C-40 Crusher 38486 | -4/Waste | Destroyed C-40 Crusher 38510 | -4/Waste | Spotted C-40 Crusher 38577 | -4/Waste | Destroyed C-40 Crusher 38591 | -4/Waste | Discovered new exit (range 11) 38599 | -4/Waste | Found Prototype Device 38599 | -4/Waste | Identified Exp. Weapon Cycler 38664 | -4/Waste | Entered Factory 38914 | -4/Factory | First assault squad dispatched 38967 | -4/Factory | Spotted B-86 Titan 38973 | -4/Factory | Identified exit to Garrison 38973 | -4/Factory | Entered Garrison 38973 | -4/Garrison | Discovered recently destroyed garrison 39034 | -4/Garrison | Garrison Relay disabled 39152 | -4/Garrison | Phase Generator disabled 39175 | -4/Garrison | Discovered new exit (range 5) 39184 | -4/Garrison | Discovered new exit (range 8) 39184 | -4/Garrison | Discovered new exit (range 73) 39184 | -4/Garrison | Discovered new exit (range 94) 39201 | -4/Garrison | Garrison Relay disabled 39307 | -4/Garrison | Garrison Relay disabled 39371 | -4/Garrison | Garrison Relay disabled 39397 | -4/Garrison | Rewired Striker 39398 | -4/Garrison | Rewired Striker 39474 | -4/Garrison | Attempted to access garrison exit controls, blocked by remote lockdown 39627 | -4/Garrison | Entered Factory 39627 | -4/Factory | Accompanied by 9 allies 39638 | -4/Factory | Reached level 28 39670 | -4/Factory | Identified exit to Upper Caves 39810 | -4/Factory | Local machine network offline 39829 | -4/Factory | Found Powered Armor 39841 | -4/Factory | Spotted B-86 Titan 39874 | -4/Factory | Entered Extension 39874 | -4/Extension | Accompanied by 9 allies 39875 | -4/Extension | Loaded intel: 19 terminal locations 39879 | -4/Extension | Disrupted transfer network 39905 | -4/Extension | Identified exit to Cetus 39918 | -4/Extension | Rescued a captive Derelict 39997 | -4/Extension | Rescued a captive Derelict 39998 | -4/Extension | Rescued a captive Derelict 40077 | -4/Extension | Rescued a captive Derelict 40081 | -4/Extension | Rescued a captive Derelict 40114 | -4/Extension | Rescued a captive Derelict 40124 | -4/Extension | First assault squad dispatched 40138 | -4/Extension | Spotted B-86 Titan 40141 | -4/Extension | Rescued a captive Derelict 40151 | -4/Extension | Destroyed B-86 Titan 40153 | -4/Extension | Spotted B-86 Titan 40161 | -4/Extension | Destroyed B-86 Titan 40192 | -4/Extension | Local machine network offline 40217 | -4/Extension | Destroyed 7 combat bots 40306 | -4/Extension | Rescued A7 40340 | -4/Extension | Destroyed 7 combat bots 40391 | -4/Extension | Reached level 29 40417 | -4/Extension | Discovered exit to Research (range 10) 40458 | -4/Extension | Destroyed 13 combat bots 40480 | -4/Extension | Entered Cetus 40480 | -4/Cetus | Accompanied by 20 allies (A7) 40485 | -4/Cetus | Acquired a Cetus Manufacturing Module code from A7 40494 | -4/Cetus | Spotted Cetus Guard 40494 | -4/Cetus | Spotted Cetus Guard 40495 | -4/Cetus | Destroyed Cetus Guard 40495 | -4/Cetus | Destroyed Cetus Guard 40496 | -4/Cetus | Destroyed Cetus Guard 40500 | -4/Cetus | Destroyed Cetus Guard 40525 | -4/Cetus | High security lockdown imminent 40583 | -4/Cetus | Discovered new exit (range 19) 40601 | -4/Cetus | Spotted Cetus Guard 40602 | -4/Cetus | Spotted Cetus Guard 40602 | -4/Cetus | Destroyed Cetus Guard 40602 | -4/Cetus | Destroyed Cetus Guard 40602 | -4/Cetus | Spotted Cetus Guard 40604 | -4/Cetus | Destroyed Cetus Guard 40605 | -4/Cetus | High security lockdown engaged 40610 | -4/Cetus | Allies destroyed Cetus Guard 40616 | -4/Cetus | Discovered exit to Research (range 20) 40626 | -4/Cetus | Met Revision 17 40680 | -4/Cetus | Destroyed 12 combat bots 40721 | -4/Cetus | Entered Archives 40721 | -4/Archives | Accompanied by 3 allies (A7) 40833 | -4/Archives | Discovered new exit (range 19) 40839 | -4/Archives | Unable to access archive contents 40859 | -4/Archives | Discovered exit to Research (range 20) 40871 | -4/Archives | Entered Hub_04(d) 40899 | -4/Hub_04(d) | Garrison activated, responded to threat 40968 | -4/Hub_04(d) | Spotted B-86 Titan 40976 | -4/Hub_04(d) | Network Hub disabled 40985 | -4/Hub_04(d) | Spotted Lightning 40987 | -4/Hub_04(d) | Spotted Lightning 40987 | -4/Hub_04(d) | Spotted Lightning 40987 | -4/Hub_04(d) | Destroyed Lightning 40988 | -4/Hub_04(d) | Destroyed Lightning 40993 | -4/Hub_04(d) | Spotted Lightning 40993 | -4/Hub_04(d) | Spotted Lightning 40994 | -4/Hub_04(d) | Destroyed Lightning 40994 | -4/Hub_04(d) | Destroyed Lightning 41015 | -4/Hub_04(d) | Destroyed 12 combat bots 41046 | -4/Hub_04(d) | Network Hub disabled 41058 | -4/Hub_04(d) | Destroyed Lightning 41071 | -4/Hub_04(d) | Discovered exit to Research (range 15) 41095 | -4/Hub_04(d) | Core integrity fell below 50% 41116 | -4/Hub_04(d) | Reached level 30 41116 | -4/Hub_04(d) | Network Hub disabled 41121 | -4/Hub_04(d) | First assault squad dispatched 41158 | -4/Hub_04(d) | Core integrity fell below 20% 41158 | -4/Hub_04(d) | Upgraded with Utility slot (x1) 41168 | -4/Hub_04(d) | Entered Research 41169 | -3/Research | Identified exit to Quarantine 41169 | -3/Research | Core integrity fell below 50% 41169 | -3/Research | Core integrity fell below 20% 41171 | -3/Research | Loaded intel: 111 trap records 41172 | -3/Research | Loaded intel: 24 terminal locations 41185 | -3/Research | Identified exit to Garrison 41185 | -3/Research | Entered Garrison 41197 | -3/Garrison | Found embedded Infiltrators 41204 | -3/Garrison | Triggered checkpoint 41205 | -3/Garrison | Local machine network offline 41244 | -3/Garrison | Garrison Relay disabled 41313 | -3/Garrison | Spotted B-86 Titan 41325 | -3/Garrison | Allies destroyed B-86 Titan 41329 | -3/Garrison | Triggered checkpoint 41334 | -3/Garrison | Triggered checkpoint 41379 | -3/Garrison | Destroyed 7 combat bots 41418 | -3/Garrison | Triggered checkpoint 41418 | -3/Garrison | Triggered checkpoint 41513 | -3/Garrison | Garrison Relay disabled 41523 | -3/Garrison | Garrison Relay disabled 41539 | -3/Garrison | Triggered checkpoint 41585 | -3/Garrison | Discovered new exit (range 14) 41724 | -3/Garrison | Discovered new exit (range 19) 41884 | -3/Garrison | Garrison Relay disabled 41894 | -3/Garrison | Triggered checkpoint 41934 | -3/Garrison | Entered Research 42012 | -3/Research | Reached level 31 42135 | -3/Research | Found Enh. Force Lance 42154 | -3/Research | Discovered exit to Quarantine (range 6) 42185 | -3/Research | Local machine network offline 42261 | -3/Research | Found Prototype Launcher 42261 | -3/Research | Identified Adv. Micro-nuke Launcher 42383 | -3/Research | Spotted B-86 Titan 42428 | -3/Research | Found Prototype Protection 42428 | -3/Research | Identified Centrium Heavy Armor Plating 42457 | -3/Research | Crushed by falling debris 42551 | -3/Research | Cargo convoy interrupted 42576 | -3/Research | Spotted Executioner 42580 | -3/Research | P-80 Master assimilated allied 57-IDM(h) 42604 | -3/Research | Destroyed Executioner 42637 | -3/Research | Found Exp. Core Analyzer 42640 | -3/Research | Destroyed 7 combat bots 42646 | -3/Research | Found Prototype Device 42646 | -3/Research | Identified Exp. Sensor Array 42891 | -3/Research | Found Prototype Device 42892 | -3/Research | Identified Exp. Shield Generator 42934 | -3/Research | First assault squad dispatched 43014 | -3/Research | Spotted B-86 Titan 43340 | -3/Research | Entered Quarantine 43369 | -3/Quarantine | Cryocooling Duct disabled 43369 | -3/Quarantine | Cryocooling Duct disabled 43381 | -3/Quarantine | Identified exit to Garrison 43381 | -3/Quarantine | Entered Garrison 43396 | -3/Garrison | Triggered checkpoint 43419 | -3/Garrison | Triggered checkpoint 43473 | -3/Garrison | Destroyed 7 combat bots 43486 | -3/Garrison | Garrison Relay disabled 43491 | -3/Garrison | Learned Section 7 security intel 43499 | -3/Garrison | Garrison Relay disabled 43605 | -3/Garrison | Learned Section 7 security intel 43637 | -3/Garrison | Phase Generator disabled 43637 | -3/Garrison | Spotted B-86 Titan 43667 | -3/Garrison | Destroyed B-86 Titan 43695 | -3/Garrison | Found embedded Infiltrators 43746 | -3/Garrison | Destroyed 7 combat bots 43789 | -3/Garrison | Triggered checkpoint 43789 | -3/Garrison | Spotted B-86 Titan 43789 | -3/Garrison | Triggered checkpoint 43823 | -3/Garrison | Destroyed B-86 Titan 43866 | -3/Garrison | Triggered checkpoint 43929 | -3/Garrison | Spotted B-86 Titan 43958 | -3/Garrison | Discovered new exit (range 12) 43978 | -3/Garrison | Destroyed B-86 Titan 44048 | -3/Garrison | Triggered checkpoint 44081 | -3/Garrison | Garrison Relay disabled 44101 | -3/Garrison | Spotted Executioner 44112 | -3/Garrison | Destroyed Executioner 44177 | -3/Garrison | Found Exp. Core Analyzer 44197 | -3/Garrison | Reached level 32 44264 | -3/Garrison | Triggered checkpoint 44295 | -3/Garrison | Triggered checkpoint 44335 | -3/Garrison | Triggered checkpoint 44367 | -3/Garrison | Garrison Relay disabled 44406 | -3/Garrison | Discovered new exit (range 12) 44422 | -3/Garrison | Spotted B-75 Beast 44438 | -3/Garrison | Destroyed B-75 Beast 44500 | -3/Garrison | Rewired B-90 Cyclops 44523 | -3/Garrison | Rewired B-86 Titan 44636 | -3/Garrison | Discovered new exit (range 17) 44675 | -3/Garrison | Triggered checkpoint 44690 | -3/Garrison | Garrison Relay disabled 44974 | -3/Garrison | Entered Section 7 44974 | -3/Section 7 | Accompanied by 2 allies 45035 | -3/Section 7 | Found Alien Artifact 45035 | -3/Section 7 | Identified Integrity Redistributor 45035 | -3/Section 7 | Used Integrity Redistributor, redistributed integrity from core (-0) 45074 | -3/Section 7 | Discovered new exit (range 20) 45224 | -3/Section 7 | First assault squad dispatched 45231 | -3/Section 7 | Garrison activated, responded to threat 45233 | -3/Section 7 | Local machine network offline 45237 | -3/Section 7 | Found Alien Artifact 45237 | -3/Section 7 | Identified Integrated Dissipator 45237 | -3/Section 7 | Installed Integrated Dissipator, increased core heat dissipation (+20) 45318 | -3/Section 7 | Spotted Executioner 45358 | -3/Section 7 | Spotted B-99 Colossus 45471 | -3/Section 7 | Spotted Executioner 45473 | -3/Section 7 | Spotted Executioner 45474 | -3/Section 7 | Destroyed Executioner 45483 | -3/Section 7 | Destroyed Executioner 45510 | -3/Section 7 | Found Exp. Core Analyzer 45516 | -3/Section 7 | Spotted Striker 45516 | -3/Section 7 | Spotted Striker 45530 | -3/Section 7 | Destroyed Striker 45539 | -3/Section 7 | Destroyed Striker 45626 | -3/Section 7 | Found Alien Energy Cannon 45626 | -3/Section 7 | Identified Drained L-Cannon 45842 | -3/Section 7 | High security lockdown imminent 45921 | -3/Section 7 | Destroyed B-99 Colossus 45922 | -3/Section 7 | High security lockdown engaged 45927 | -3/Section 7 | Found Prototype Ballistic Gun 45928 | -3/Section 7 | Identified Multirail 46002 | -3/Section 7 | Found Alien Artifact 46002 | -3/Section 7 | Identified Core Reset Matrix 46002 | -3/Section 7 | Used Core Reset Matrix 46006 | -3/Section 7 | Sensed 12 artifacts in vicinity 46015 | -3/Section 7 | Found LRC Energy Well 46015 | -3/Section 7 | Installed LRC Energy Well, increased energy storage capacity (+250) 46020 | -3/Section 7 | Found LRC Insulator 46020 | -3/Section 7 | Installed LRC Insulator, gained EM resistance (25) 46133 | -3/Section 7 | Spotted Investigator 46135 | -3/Section 7 | Destroyed Investigator 46157 | -3/Section 7 | Build established: Wizard-Sprinter 46166 | -3/Section 7 | Found Prototype Launcher 46166 | -3/Section 7 | Identified Containment Facilitator 46175 | -3/Section 7 | Destroyed 24 combat bots 46273 | -3/Section 7 | Integrated with Sigix Exoskeleton 46341 | -3/Section 7 | Destroyed 16 combat bots 46420 | -3/Section 7 | Found Exp. Core Analyzer 46464 | -3/Section 7 | Spotted Striker 46474 | -3/Section 7 | Destroyed Striker 46487 | -3/Section 7 | Reached level 33 46523 | -3/Section 7 | Upgraded with Weapon slot (x1) 46539 | -3/Section 7 | Destroyed 15 combat bots 46568 | -3/Section 7 | Spotted Executioner 46569 | -3/Section 7 | Build established: Alien-Sigix 46575 | -3/Section 7 | Destroyed Executioner 46628 | -3/Section 7 | Found Hpw. Transdimensional Reconstructor 46666 | -3/Section 7 | Found Terrabomb 46666 | -3/Section 7 | Used Terrabomb 46696 | -3/Section 7 | Spotted Executioner 46701 | -3/Section 7 | Destroyed Executioner 46707 | -3/Section 7 | Destroyed Executioner 46753 | -3/Section 7 | Destroyed 30 combat bots 46784 | -3/Section 7 | Sterilization system engaged 46784 | -3/Section 7 | Non-combat units ordered to evacuate 46797 | -3/Section 7 | Allies destroyed Executioner 46811 | -3/Section 7 | Found Prototype Processor 46811 | -3/Section 7 | Identified Exp. Targeting Computer 46824 | -3/Section 7 | Destroyed 11 combat bots 46824 | -3/Section 7 | Spotted Alpha 7 46824 | -3/Section 7 | Spotted Alpha 7 46835 | -3/Section 7 | Destroyed Alpha 7 46840 | -3/Section 7 | Destroyed Alpha 7 46850 | -3/Section 7 | Found Unknown Device 46850 | -3/Section 7 | Identified Antimissile System 46855 | -3/Section 7 | Found Prototype Ballistic Gun 46855 | -3/Section 7 | Identified Multirail 46860 | -3/Section 7 | Found Prototype Processor 46860 | -3/Section 7 | Identified Exp. Target Analyzer 46870 | -3/Section 7 | Found Prototype Device 46870 | -3/Section 7 | Identified Exp. ECM Suite 46884 | -3/Section 7 | Combat units ordered to evacuate 46888 | -3/Section 7 | Found Prototype Processor 46888 | -3/Section 7 | Identified Exp. Melee Analysis Suite 46901 | -3/Section 7 | Found Spacefold Activator 46978 | -3/Section 7 | Destroyed 7 combat bots 46978 | -3/Section 7 | Found Integrated Mediator 46978 | -3/Section 7 | Installed Integrated Mediator, increased core attachment efficiency. 47042 | -3/Section 7 | Discovered new exit (range 20) 47084 | -3/Section 7 | Ambient heat levels rising (+10) 47148 | -3/Section 7 | Found Prototype Device 47148 | -3/Section 7 | Identified Adv. Kinecellerator 47234 | -3/Section 7 | Ambient heat levels rising (+10) 47300 | -3/Section 7 | Entered Research 47300 | -2/Research | Warlord forces began assault on 0b10 47305 | -2/Research | Emitted hypermatrix ping 47310 | -2/Research | Assembled emerged from beneath the floor 47314 | -2/Research | Spotted B-90 Cyclops 47323 | -2/Research | Destroyed B-90 Cyclops 47325 | -2/Research | Distinguished unit "Lair Dwellers" dispatched to help 47325 | -2/Research | Distinguished unit "Golden Rifle" dispatched to help 47360 | -2/Research | Assembled emerged from beneath the floor 47410 | -2/Research | Research machine network offline 47420 | -2/Research | Spotted B-90 Cyclops 47433 | -2/Research | Destroyed B-90 Cyclops 47447 | -2/Research | Assembled emerged from beneath the floor 47458 | -2/Research | Assembled emerged from beneath the floor 47491 | -2/Research | Reached level 34 47514 | -2/Research | Discovered new exit (range 15) 47533 | -2/Research | Assembled emerged from beneath the floor 47562 | -2/Research | Assembled emerged from beneath the floor 47575 | -2/Research | Destroyed 8 combat bots 47638 | -2/Research | Assembled emerged from beneath the floor 47648 | -2/Research | Spotted Executioner 47649 | -2/Research | Spotted Striker 47660 | -2/Research | Assembled emerged from beneath the floor 47660 | -2/Research | Discovered new exit (range 18) 47677 | -2/Research | Assembled emerged from beneath the floor 47759 | -2/Research | Reached level 35 47768 | -2/Research | Upgraded with Utility slot (x1) 47793 | -2/Research | Discovered new exit (range 18) 47797 | -2/Research | Spotted Striker 47798 | -2/Research | Spotted Executioner 47806 | -2/Research | Destroyed Striker 47810 | -2/Research | Destroyed Executioner 47839 | -2/Research | Assembled emerged from beneath the floor 47854 | -2/Research | Attacked by Warlord 47854 | -2/Research | Spotted KL-PCU(K) 47854 | -2/Research | Spotted 39-XHW(K) 47858 | -2/Research | Assembled emerged from beneath the floor 47866 | -2/Research | Assembled emerged from beneath the floor 47866 | -2/Research | Found Prototype Launcher 47867 | -2/Research | Identified Ragnarok Missile Launcher 47889 | -2/Research | Assembled emerged from beneath the floor 47897 | -2/Research | Found Prototype Launcher 47897 | -2/Research | Identified Gui. Micro-nuke Launcher 47915 | -2/Research | Borebot progress halted 47943 | -2/Research | Spotted Executioner 47950 | -2/Research | Destroyed Executioner 48025 | -2/Research | Spotted B-90 Cyclops 48028 | -2/Research | Destroyed B-90 Cyclops 48055 | -2/Research | Spotted KT-WDS(g) 48065 | -2/Research | Borebot progress halted 48075 | -2/Research | Spotted Executioner 48077 | -2/Research | Entered Access 48082 | -1/Access | Emitted hypermatrix ping 48087 | -1/Access | Assembled emerged from beneath the floor 48127 | -1/Access | Assembled emerged from beneath the floor 48158 | -1/Access | Spotted B-99 Colossus 48167 | -1/Access | Destroyed B-99 Colossus 48188 | -1/Access | Assembled emerged from beneath the floor 48196 | -1/Access | Reached level 36 48216 | -1/Access | Spotted Striker 48235 | -1/Access | Destroyed Striker 48280 | -1/Access | Scanned by Researcher 48281 | -1/Access | Spotted Investigator 48283 | -1/Access | Destroyed Investigator 48283 | -1/Access | Spotted Striker 48283 | -1/Access | Spotted Striker 48283 | -1/Access | Spotted Striker 48286 | -1/Access | Destroyed Striker 48298 | -1/Access | Destroyed Striker 48301 | -1/Access | Destroyed Striker 48316 | -1/Access | Crushed by falling debris 48316 | -1/Access | Core integrity fell below 50% 48384 | -1/Access | Destroyed 56 combat bots 48407 | -1/Access | Found Prototype Device 48407 | -1/Access | Identified Exp. Force Field 48429 | -1/Access | Reached level 37 48432 | -1/Access | Spotted Striker 48432 | -1/Access | Spotted Striker 48432 | -1/Access | Spotted Executioner 48432 | -1/Access | Spotted Executioner 48457 | -1/Access | Destroyed Striker 48463 | -1/Access | Core integrity fell below 20% 48469 | -1/Access | Destroyed Striker 48475 | -1/Access | Destroyed Executioner 48498 | -1/Access | Destroyed Executioner 48526 | -1/Access | Destroyed 30 combat bots 48624 | -1/Access | Assembled emerged from beneath the floor 48653 | -1/Access | Spotted Striker 48653 | -1/Access | Spotted Striker 48653 | -1/Access | Spotted Striker 48654 | -1/Access | Spotted Striker 48655 | -1/Access | Destroyed Striker 48658 | -1/Access | Spotted Executioner 48658 | -1/Access | Destroyed Striker 48658 | -1/Access | Garrison activated, responded to threat 48660 | -1/Access | Destroyed Striker 48660 | -1/Access | Destroyed Striker 48664 | -1/Access | Spotted Executioner 48664 | -1/Access | Destroyed Executioner 48680 | -1/Access | Destroyed Striker 48701 | -1/Access | Destroyed 22 combat bots 48716 | -1/Access | Spotted Striker 48730 | -1/Access | Spotted Executioner 48733 | -1/Access | Destroyed Striker 48733 | -1/Access | Destroyed Executioner 48753 | -1/Access | Sterilization system engaged 48777 | -1/Access | Destroyed Executioner 48781 | -1/Access | Spotted Striker 48786 | -1/Access | Spotted Executioner 48789 | -1/Access | Destroyed Striker 48793 | -1/Access | Destroyed Executioner 48825 | -1/Access | Spotted Striker 48830 | -1/Access | Destroyed Striker 48835 | -1/Access | Spotted Executioner 48839 | -1/Access | Destroyed Executioner 48861 | -1/Access | Destroyed 35 combat bots 48952 | -1/Access | Reached level 38 48983 | -1/Access | Upgraded with Utility slot (x1) 48994 | -1/Access | Found Powered Armor 49053 | -1/Access | Ambient heat levels rising (+10) 49084 | -1/Access | Assembled emerged from beneath the floor 49203 | -1/Access | Ambient heat levels rising (+10) 49277 | -1/Access | Assembled emerged from beneath the floor 49353 | -1/Access | Ambient heat levels rising (+10) 49411 | -1/Access | Assembled emerged from beneath the floor 49428 | -1/Access | Energy Cycler disabled 49498 | -1/Access | Spotted B-99 Colossus 49503 | -1/Access | Ambient heat levels rising (+10) 49512 | -1/Access | Destroyed B-99 Colossus 49539 | -1/Access | Found Unknown Device 49539 | -1/Access | Identified Quantum Capacitor 49574 | -1/Access | Spotted B-99 Colossus 49579 | -1/Access | Assembled emerged from beneath the floor 49603 | -1/Access | Assembled emerged from beneath the floor 49614 | -1/Access | Spotted B-99 Colossus 49635 | -1/Access | Allies destroyed B-99 Colossus 49636 | -1/Access | Spotted B-99 Colossus 49653 | -1/Access | Ambient heat levels rising (+10) 49653 | -1/Access | Destroyed B-99 Colossus 49658 | -1/Access | Discovered new exit (range 17) 49698 | -1/Access | Assembled emerged from beneath the floor 49742 | -1/Access | Assembled emerged from beneath the floor 49761 | -1/Access | Discovered new exit (range 18) 49777 | -1/Access | Spotted B-99 Colossus 49777 | -1/Access | Spotted B-99 Colossus 49803 | -1/Access | Ambient heat levels rising (+10) 49953 | -1/Access | Ambient heat levels rising (+10) 50103 | -1/Access | Ambient heat levels rising (+10) 50253 | -1/Access | Ambient heat levels rising (+10) 50403 | -1/Access | Ambient heat levels rising (+10) 50553 | -1/Access | Ambient heat levels rising (+10) 50703 | -1/Access | Ambient heat levels rising (+10) 50853 | -1/Access | Ambient heat levels rising (+10) 50893 | -1/Access | Entered Command 50898 | -1/Command | Emitted hypermatrix ping 50903 | -1/Command | Assembled emerged from beneath the floor 50928 | -1/Command | Discovered new exit (range 17) 50950 | -1/Command | Spotted Striker 50962 | -1/Command | Spotted B-99 Colossus 50964 | -1/Command | High security lockdown imminent 50982 | -1/Command | Spotted Executioner 50982 | -1/Command | Spotted Alpha 7 51042 | -1/Command | Destroyed 8 combat bots 51044 | -1/Command | High security lockdown engaged 51081 | -1/Command | Assembled emerged from beneath the floor 51094 | -1/Command | Destroyed 7 combat bots 51104 | -1/Command | Destroyed Alpha 7 51150 | -1/Command | Destroyed 17 combat bots 51163 | -1/Command | Found Prototype Energy Gun 51163 | -1/Command | Identified Enh. Gamma Rifle 51169 | -1/Command | Found Exp. Target Analyzer 51183 | -1/Command | Spotted Striker 51183 | -1/Command | Spotted Executioner 51183 | -1/Command | Spotted Executioner 51185 | -1/Command | Spotted Investigator 51186 | -1/Command | Destroyed Investigator 51186 | -1/Command | Destroyed Executioner 51191 | -1/Command | Destroyed Executioner 51193 | -1/Command | Destroyed Striker 51247 | -1/Command | Destroyed 53 combat bots 51317 | -1/Command | Crushed by falling debris 51324 | -1/Command | Reached level 39 51348 | -1/Command | Destroyed Investigator 51350 | -1/Command | Spotted Striker 51352 | -1/Command | Spotted Executioner 51356 | -1/Command | Destroyed Striker 51360 | -1/Command | Destroyed Executioner 51375 | -1/Command | Spotted Striker 51375 | -1/Command | Spotted Striker 51388 | -1/Command | Destroyed Striker 51388 | -1/Command | Destroyed Striker 51438 | -1/Command | Destroyed 31 combat bots 51489 | -1/Command | Assembled emerged from beneath the floor 51518 | -1/Command | Assembled emerged from beneath the floor 51549 | -1/Command | Spotted B-99 Colossus 51570 | -1/Command | Destroyed B-99 Colossus 51587 | -1/Command | Found Prototype Processor 51613 | -1/Command | Identified Exp. Signal Interpreter 51679 | -1/Command | Assembled emerged from beneath the floor 51695 | -1/Command | Allies destroyed B-99 Colossus 51714 | -1/Command | Spotted Striker 51714 | -1/Command | Spotted Striker 51720 | -1/Command | Spotted Striker 51724 | -1/Command | Assembled emerged from beneath the floor 51730 | -1/Command | Destroyed Striker 51732 | -1/Command | Destroyed Striker 51739 | -1/Command | Destroyed Striker 51744 | -1/Command | Spotted Alpha 7 51744 | -1/Command | Spotted Striker 51746 | -1/Command | Spotted Executioner 51747 | -1/Command | Spotted Striker 51749 | -1/Command | Spotted Executioner 51751 | -1/Command | Destroyed Executioner 51751 | -1/Command | Destroyed Striker 51755 | -1/Command | Destroyed Executioner 51759 | -1/Command | Destroyed Striker 51759 | -1/Command | Destroyed Alpha 7 51764 | -1/Command | Destroyed Executioner 51765 | -1/Command | Spotted Executioner 51765 | -1/Command | Spotted Executioner 51782 | -1/Command | Destroyed Executioner 51789 | -1/Command | Destroyed Executioner 51827 | -1/Command | Spotted Striker 51830 | -1/Command | Spotted Striker 51830 | -1/Command | Spotted Striker 51832 | -1/Command | Destroyed Striker 51832 | -1/Command | Spotted Striker 51832 | -1/Command | Destroyed Striker 51839 | -1/Command | Destroyed Striker 51839 | -1/Command | Destroyed Striker 51841 | -1/Command | Spotted Striker 51844 | -1/Command | Destroyed Executioner 51848 | -1/Command | Destroyed Striker 51860 | -1/Command | Spotted Executioner 51860 | -1/Command | Spotted Executioner 51863 | -1/Command | Destroyed Executioner 51869 | -1/Command | Destroyed Executioner 51871 | -1/Command | Spotted B-99 Colossus 51871 | -1/Command | Destroyed Executioner 51883 | -1/Command | Destroyed B-99 Colossus 51920 | -1/Command | Destroyed 75 combat bots 51932 | -1/Command | Assembled emerged from beneath the floor 51937 | -1/Command | Phase Generator disabled 51986 | -1/Command | Spotted B-99 Colossus 52032 | -1/Command | Destroyed B-99 Colossus 52050 | -1/Command | Identified exit to Surface 52056 | -1/Command | Found Multirail 52078 | -1/Command | Spotted M Guard 52078 | -1/Command | Spotted M Guard 52078 | -1/Command | Spotted Combat Programmer 52079 | -1/Command | Spotted Combat Programmer 52118 | -1/Command | Destroyed Combat Programmer 52144 | -1/Command | Found Quantum Capacitor 52150 | -1/Command | Spotted Executioner 52188 | -1/Command | Destroyed Executioner 52245 | -1/Command | Destroyed 16 combat bots 52419 | -1/Command | Destroyed 19 combat bots 52492 | -1/Command | Destroyed 51 combat bots 52568 | -1/Command | Destroyed 11 combat bots 52582 | -1/Command | Crushed by falling debris 52601 | -1/Command | Destroyed 15 combat bots 52716 | -1/Command | Destroyed 12 combat bots 52831 | -1/Command | Destroyed 56 combat bots 52928 | -1/Command | Reached level 40 55370 | -1/Command | Allies destroyed M Guard 55375 | -1/Command | Allies destroyed Combat Programmer 55381 | -1/Command | Allies destroyed M Guard 55381 | -1/Command | All MAIN.C guards destroyed 55387 | -1/Command | Found Prototype Launcher 55387 | -1/Command | Identified Adv. Micro-nuke Launcher 55516 | -1/Command | Found Prototype Device 55516 | -1/Command | Identified Adv. Kinecellerator 55541 | -1/Command | Found Prototype Device 55541 | -1/Command | Identified Active Sensor Suite 55711 | -1/Command | Found Adv. Micro-nuke Launcher 55807 | -1/Command | Destroyed 73 combat bots 57722 | -1/Command | Found Adv. Kinecellerator 60108 | -1/Command | Found Adv. Kinecellerator 60135 | -1/Command | Found Exp. Core Analyzer 60154 | -1/Command | Found Quantum Capacitor 60170 | -1/Command | Crushed by falling debris 60190 | -1/Command | Found Adv. Kinecellerator 60264 | -1/Command | Found Unknown Protection 60264 | -1/Command | Identified Hvy. Insulated Plating 60298 | -1/Command | Found Prototype Processor 60298 | -1/Command | Identified Exp. Signal Interpreter 60306 | -1/Command | Found Unknown Device 60306 | -1/Command | Identified Antimissile System 60398 | -1/Command | Found Quantum Capacitor 60537 | -1/Command | Destroyed 7 combat bots 60685 | -1/Command | Met MAIN.C 60709 | -1/Command | MAIN.C activated Command garrisons 60716 | -1/Command | 0b10 Conduit disabled 60729 | -1/Command | MAIN.C's shell transforms into a squad of autonomous robots 60729 | -1/Command | Allies destroyed MAIN.C Shell 60734 | -1/Command | Spotted M Shell/Def 60734 | -1/Command | Spotted M Shell/Def 60734 | -1/Command | Spotted M Shell/Atk 60734 | -1/Command | Spotted M Shell/Atk 60734 | -1/Command | Spotted M Shell/Def 60734 | -1/Command | Spotted M Shell/Atk 60737 | -1/Command | Allies destroyed M Shell/Def 60738 | -1/Command | Spotted M Shell/Def 60749 | -1/Command | Allies destroyed M Shell/Atk 60749 | -1/Command | Allies destroyed M Shell/Atk 60751 | -1/Command | Allies destroyed M Shell/Def 60754 | -1/Command | Spotted M Shell/Atk 60757 | -1/Command | Destroyed M Shell/Def 60759 | -1/Command | Allies destroyed M Shell/Atk 60762 | -1/Command | Destroyed M Shell/Def 60763 | -1/Command | Destroyed M Shell/Atk 60798 | -1/Command | Allies destroyed MAIN.C 60801 | -1/Command | Discovered exit to Surface (range 37) 60801 | -1/Command | Discovered exit to Surface (range 75) 60801 | -1/Command | Extracted map data and part IDs from MAIN.C's data core 61286 | -1/Command | Warped through subspace to slip node 61286 | -1/Command | Discovered new exit (range 4) 61291 | -1/Command | Entered Access_0 61292 | -1/Access_0 | Sensed 3 artifacts in vicinity 61292 | -1/Access_0 | Met Architect 61323 | -1/Access_0 | Subspace Access Node disabled 61327 | -1/Access_0 | Subspace Access Node disabled 61329 | -1/Access_0 | A6 warped into view 61384 | -1/Access_0 | Subspace Access Node disabled 61391 | -1/Access_0 | Subspace Access Node disabled 61416 | -1/Access_0 | A5 warped into view 61429 | -1/Access_0 | Found Hpw. Transdimensional Reconstructor 61445 | -1/Access_0 | Warped through subspace to slip node 61445 | -1/Access_0 | Discovered exit to Surface (range 8) 61491 | *** | Heading to fleet! Last Messages --------------- 61441_ Critical hit (Impale). 61441_ A6 follow-up attacks with Enh. Force Lance. 61442_ Quantum Shear penetrates Workstation. 61442_ Penetrated by Quantum Shear. 61442_ Dropped Superbattery. 61443_ Extracted 487 energy. 61444_ Penetrated by Quantum Shear. 61445_ Discarded Imp. Armor Integrity Analyzer. 61445_ Warped through subspace, drawn to slip node. 61445_ EXIT=FOUND: SURFACE 61447_ A0_RES: I have more important things to do than play hide-and-seek. Deal with this piece of junk if it returns. 61460_ Extracted 4 energy. 61460_ Acquired Superbattery. 61464_ Quantum Shear penetrates Wall. 61465_ Quantum Shear penetrates Earth. 61466_ Quantum Shear penetrates Wall. 61467_ Quantum Shear penetrates Earth. 61477_ Quantum Shear penetrates Wall. 61486_ The unstable cave ceiling collapses. Map ----- +----------------------------------------------------+ | | | | | | | | | | | | | | | | | | | | | | | | | | | | | | | | | ???????????##############################????????? | | ??????????################################???????? | | ?????????##################################??????? | | ?????????##################################??????? | | ?????????##################################??????? | | ????????####################################?????? | | ????????####################################?????? | | ????????################# ##################?????? | | ????????################ #################?????? | | ???????################# X #################?????? | | ???????################# ##################????? | | ???????################ ##################????? | | ???????################ ##################?????? | | ???????################# #################?????? | | ??????################# #################?????? | | ??????################# ##################?????? | | ??????################# < #################?????? | | ??????################# #################??????? | | ??????################ #################??????? | | ??????############### # ###############??????? | | ???????############## ## ###############??????? | | ???????############## # # ##############???????? | | ???????############# ###############???????? | | ???????############# #############???????? | | ???????############## ##############???????? | | ????????############# ##############????????? | | ????????############### ################????????? | | ????????################ ################????????? | | ?????????############### ###############?????????? | | ??????????############## ##############??????????? | | ??????????############## #############??????????? | | ???????????########## ##########???????????? | | ????????????######### # #########????????????? | | ?????????????######## #######?????????????? | +----------------------------------------------------+ Best States ------------- Heat Dissipation 228 Coolant Potential 120 Energy Generation 77 Energy Capacity 2600 Matter Stores 300 Matter Capacity 550 Sight Range 20 Robot Scan Range 16 Terrain Scan Range 16 Terrain Scan Density 110 Jamming Range 16 Power Amplification 20 Additional Mass Support 12 EM Shielding 3 Armor Coverage 2400 Resistance: KI 50 Resistance: TH 90 Resistance: EX 90 Resistance: EM 75 Resistance: I 50 Resistance: S 50 Resistance: P 50 Weapon Shielding 100 Point Defense Rating 240 Weapon Cycling 30 Phase Shifting 15 Evasion (%) 90 Targeting Accuracy 24 Melee Accuracy 12 Target Analysis 10 Core Analysis 12 Armor Integrity Analysis 50 Recoil Reduction 2 Matter Filtering 30 Particle Charging 25 Kinecelleration 50 Salvage Targeting 5 Offensive Hacking 35 Defensive Hacking 55 Item Schematics ----------------- Prc. Energy Filter | -3/Section 7 | Archive Spectral Analyzer | -3/Section 7 | Archive Neutron Cannon | -3/Section 7 | Archive Exp. System Shield | -3/Section 7 | Archive Exp. Power Amplifier | -3/Section 7 | Archive Robot Schematics ------------------ R-10 Processor | -3/Section 7 | Archive Fabricated ------------ Dispersion Rifle | x2 | -7/Factory | Preloaded Alien Tech Used ----------------- Integrity Redistributor Integrated Dissipator Drained L-Cannon Core Reset Matrix LRC Energy Well LRC Insulator Sigix Exoskeleton Sigix Sheargun Terrabomb Integrated Mediator High-powered Transdimensional Reconstructor Achievements -------------- None Challenges ------------ None RPGLIKE | -11 -10 -10 -9 -9 -9 -8 -8 -8 -8 -8 -8 -8 -7 -7 -7 -7 -7 -6 -6 -6 -6 -6 -5 -5 -5 -5 -5 -5 -5 -5 -5 -4 -4 -4 -4 -4 -4 -4 -4 -4 -4 -3 -3 -3 -3 -3 -3 -2 -1 -1 -1 --------- Run | Jun Mat Min Mat Min Exi Min Mat Gar Mat Gar Mat Gar Fac Low Low Zio Dee Pro Fac Low Low Dat Pro Fac Was Fac Gar Fac Upp Upp War Pro Fac Was Fac Gar Fac Ext Cet Arc Hub Res Gar Res Qua Gar Sec Res Acc Com Ac0 Levels Raised 39 | . 3 1 5 1 . 1 2 1 . 1 . . 1 . . 1 . . 4 . . . 1 1 . . 1 . . . 2 . . . . . 1 1 . . 1 . . 1 . 1 1 2 3 2 . XP Earned 62855 | 3000 4731 1300 8723 668 80 1304 2849 1652 491 786 3 667 1326 335 484 141 329 1113 5502 198 165 84 1053 1104 32 369 938 35 182 298 2174 397 397 32 241 309 351 1440 787 75 367 335 1130 634 191 853 1747 2761 4687 3796 209 XP Spent 61445 | 2950 4350 1700 6970 . 1310 1500 600 4200 . . . 1500 330 . . 2600 400 . 5600 . . 320 1400 1700 . . 980 . . . 3320 . . . . . 1750 . . . 3000 . . 600 . . 3500 3200 4500 3165 . Upgrades 88 | 5 9 1 11 . 3 1 1 3 . . . 2 3 . . 1 2 . 7 . . 2 1 1 . . 5 . . . 5 . . . . . 1 . . . 3 . . 1 . . 4 1 2 13 . Power Slot 2 | . . . 1 . . . . 1 . . . . . . . . . . . . . . . . . . . . . . . . . . . . . . . . . . . . . . . . . . . Propulsion Slot 5 | . 1 . . . . . . . . . . . . . . . . . 3 . . . . . . . . . . . 1 . . . . . . . . . . . . . . . . . . . . Utility Slot 11 | 3 1 1 1 . . . . 1 . . . . . . . 1 . . . . . . . . . . . . . . . . . . . . . . . . 1 . . . . . . 1 1 . . Weapon Slot 6 | 1 . . 1 . . . . 1 . . . . . . . . . . . . . . 1 1 . . . . . . . . . . . . . . . . . . . . . . 1 . . . . Core Integrity 15 | . . . . . 2 . . . . . . . . . . . . . . . . . . . . . . . . . . . . . . . . . . . 2 . . . . . . . . 11 . Heat Dissipation 12 | . . . 2 . . . . . . . . . 3 . . . . . . . . 2 . . . . 4 . . . 1 . . . . . . . . . . . . . . . . . . . . Mass Support 1 | . . . . . . . . . . . . . . . . . . . . . . . . . . . 1 . . . . . . . . . . . . . . . . . . . . . . . . Inventory Capacity 7 | . 2 . 2 . 1 1 . . . . . . . . . . . . . . . . . . . . . . . . . . . . . . 1 . . . . . . . . . . . . . . Sight Range 4 | . . . . . . . . . . . . . . . . . 2 . 2 . . . . . . . . . . . . . . . . . . . . . . . . . . . . . . . . Terrain Scan Density 1 | 1 . . . . . . . . . . . . . . . . . . . . . . . . . . . . . . . . . . . . . . . . . . . . . . . . . . . Ranged Accuracy 8 | . 1 . 1 . . . 1 . . . . 2 . . . . . . 1 . . . . . . . . . . . 1 . . . . . . . . . . . . . . . . . . 1 . Melee Accuracy 1 | . . . . . . . . . . . . . . . . . . . 1 . . . . . . . . . . . . . . . . . . . . . . . . . . . . . . . . Hack Attack % 3 | . 2 . 1 . . . . . . . . . . . . . . . . . . . . . . . . . . . . . . . . . . . . . . . . . . . . . . . . Hack Defense % 2 | . 2 . . . . . . . . . . . . . . . . . . . . . . . . . . . . . . . . . . . . . . . . . . . . . . . . . . KI Resistance % 1 | . . . . . . . . . . . . . . . . . . . . . . . . . . . . . . . 1 . . . . . . . . . . . . . . . . . . . . KI Damage % 3 | . . . 2 . . . . . . . . . . . . . . . . . . . . . . . . . . . . . . . . . . . . . . . . . . . . . . 1 . TH Damage % 3 | . . . . . . . . . . . . . . . . . . . . . . . . . . . . . . . . . . . . . . . . . . . . . . . 3 . . . . EX Damage % 3 | . . . . . . . . . . . . . . . . . . . . . . . . . . . . . . . 1 . . . . . . . . . . . . 1 . . . . 1 . . Protomatter Created 25440 | . 310 345 789 191 91 257 393 827 282 527 . 321 162 98 223 . 882 301 1522 293 225 173 252 245 . 245 709 74 73 307 1367 281 74 . 164 . . 503 264 145 127 . 277 478 . 630 2669 746 2788 4810 . Integrity Restored 34243 | . 555 454 2161 526 273 627 921 1300 395 905 . 684 187 111 325 . 1418 524 1506 380 350 27 408 549 . 465 1243 168 155 224 1937 214 174 . 481 . . 1332 620 27 81 . 1331 830 . 946 1721 557 2008 5143 . Core 24987 | . 444 333 1794 314 273 627 465 407 362 726 . 516 142 54 222 . 811 370 1384 104 281 15 391 391 . 465 890 150 143 169 805 92 150 . 100 . . 779 246 21 81 . 1016 574 . 633 1240 461 1779 4767 . Parts 9256 | . 111 121 367 212 . . 456 893 33 179 . 168 45 57 103 . 607 154 122 276 69 12 17 158 . . 353 18 12 55 1132 122 24 . 381 . . 553 374 6 . . 315 256 . 313 481 96 229 376 . Protomatter Decayed 19725 | . 110 150 278 27 . 113 127 428 181 216 . 193 88 50 105 52 299 121 740 197 104 87 114 62 . 99 234 17 9 307 1372 65 69 . . . 93 394 38 177 54 . 39 829 . 511 2684 4597 2517 1778 . Game ------ Seed DispersionActivePlating Manual? 1 Play Time 13:14:55 Cumulative 522.7 hours Start 2023.03.22 @ 11:10:33 End 2023.03.26 @ 04:43:31 Sessions 43 Manual Loads 0 Difficulty Rogue Special Mode Winter2019/RPGLIKE Game No. 535 Rogue 535 Adventurer 0 Explorer 0 Win Type 2 Total 2 Types 1/0/1/0/0/0/0/0/0 Lore% 65 Gallery% 85 Achievement% 65 Wizard Run 0 Options --------- ASCII 0 Keyboard 0 Movement Mouse Keybinds 0 Fullscreen 2 Font 24/Smallcaps Map View 76x50 Tactical HUD 1 Map Filters NONE Filters NONE Steam 1 RUN: 627ef310-fc5a-49c4-b20a-cac6af6da985